Cogmind - Beta 17 @@@ ROGUE MODE // 2026.06.29 @ 01:28:11 Player: szymekc Result: Heading to fleet! Performance ------------- Evolutions (9) 4500 Regions Visited (33) 6600 Robots Destroyed (605) 3025 Value Destroyed (34471) 34471 Prototype IDs (397) 7940 Alien Tech Used (16) 3200 Bonus (86826) 86826 TOTAL SCORE: 146562 Bonus ------- High Alert Combat Kills 4691 Follower Combat Kills 2461 Prayed to X0-1V1 5000 Major X0-1V1 Interference 20750 Network Hubs Disabled 200 Met Data Miner 300 Met Imprinter 300 Was Imprinted 300 MAIN.C Attacked Warlord 500 Warlord Defense Kills 5544 Met R17 at Cetus 500 Used Core Reset Matrix 3000 Scanned by Researcher 500 Pursued by Intercept 500 Recovered Sigix Corpse 2000 Destroyed MAIN.C Guards 500 Met MAIN.C 5000 Destroyed MAIN.C Shell 5000 Destroyed MAIN.C 10000 Met Architect 300 Destroyed A8 300 Destroyed A6 400 Destroyed A5 500 Destroyed A4 700 Destroyed A3 800 Destroyed A2 1000 Destroyed Architect 15000 Win 3000 Friendly Fire -2220 Cogmind --------- Core Integrity 1293/1800 Matter 260/300 Energy 1065/1090 System Corruption 0% Temperature Cool (19) +ITN Movement Treading (151) Location To Fleet Rendezvous Parts ------- > --- POWER (3) -------- Zero-point Reactor Vortex Chain Reactor (fused) > --- PROPULSION (7) --- Biometal Medium Treads Improved Heavy Siege Treads Biometal Heavy Treads Experimental Biometal Heavy Treads > --- UTILITY (10) ----- Experimental Cooling System Huge Storage Unit Spectral Analyzer Experimental Targeting Computer Experimental Core Analyzer Experimental Weapon Cycler Zionite Shade Armor (fused) Medium Regenerative Plating Advanced Force Field X0-1V1's Piety Tracker > --- WEAPON (6) ------- Long-range Gatling Laser Gatling Beam Gatling Beam Sigix Sheargun Sigix Sheargun Sigix Sheargun > --- INVENTORY (26) --- Biometal Heavy Treads Advanced Heavy Siege Treads Experimental Cooling System Experimental Energy Well (600) Zionite Biocell (600) Zionite Shade Armor Graphene Brace Advanced Force Field Microwarp Drive Null Cannon Null Cannon Hypervelocity Multirail A3's Sniper Rifle Sigix Broadsword Sigix Broadsword Sigix Corpse Peak State ------------ > --- POWER ------------ Zero-point Reactor Vortex Chain Reactor > --- PROPULSION ------- Biometal Medium Treads Improved Heavy Siege Treads Biometal Heavy Treads Experimental Biometal Heavy Treads > --- UTILITY ---------- Huge Storage Unit Spectral Analyzer Experimental Targeting Computer Experimental Core Analyzer Zionite Shade Armor Medium Regenerative Plating Advanced Force Field Microwarp Drive > --- WEAPON ----------- Null Cannon Null Cannon Sigix Broadsword Sigix Broadsword > --- INVENTORY -------- Biometal Heavy Treads Advanced Heavy Siege Treads Experimental Cooling System Experimental Cooling System Experimental Energy Well Zionite Biocell Experimental Weapon Cycler Advanced Phase Shifter Improved Utility Shielding Zionite Shade Armor Graphene Brace Advanced Force Field Transdimensional Reconstructor Core Regenerator Integrity Redistributor Integrity Redistributor Integrity Redistributor Sigix Sheargun Sigix Sheargun Sigix Sheargun Enhanced Nova Cannon Enhanced Nova Cannon Hypervelocity Multirail [Rating: 295] Favorites ----------- Power Cold Fusion Reactor Engine Improved Ion Engine Power Core Neutrino Core Reactor Cold Fusion Reactor Propulsion Centrium Leg Treads Centrium Heavy Treads Leg Centrium Leg Wheel Subdweller Monowheel Hover Unit Aerolev Unit Flight Unit Improved VTOL Module Utility X0-1V1's Piety Tracker Device X0-1V1's Piety Tracker Storage High-capacity Storage Unit Processor Spectral Analyzer Hackware Advanced Hacking Suite Protection Medium Regenerative Plating Artifact Microwarp Drive Weapon Sigix Sheargun Energy Gun Sigix Sheargun Energy Cannon Neutron Cannon Ballistic Gun Hypervelocity Multirail Ballistic Cannon Light Cannon Launcher Advanced EMP Blaster Special Weapon Molecular Deconstructor Impact Weapon Heavy Mace Slashing Weapon Sigix Broadsword Build | -11 -10 -10 -10 -8 -8 -7 -7 -7 -7 -6 -6 -6 -6 -6 -5 -5 -5 -5 -5 -5 -4 -4 -4 -4 -3 -3 -3 -2 -2 -2 -1 -1 -1 ------- Run | Yrd Mat Min Sub Mat Sto Fac Low Low Zio Pro Fac Low Low Dat Pro Fac Ext Cet Arc Hub Fac Upp Upp War Pro Res Tes Res Qua Sec Acc Com Ac0 Slots Evolved 17 | . . . . 4 . 2 . . . . 2 . . . . 2 . . . . 2 . . . . 2 . 2 . . 1 . . Power . | . . . . . . . . . . . . . . . . . . . . . . . . . . . . . . . . . . Propulsion 5 | . . . . 2 . 1 . . . . . . . . . . . . . . 1 . . . . . . 1 . . . . . Utility 8 | . . . . 1 . . . . . . 1 . . . . 2 . . . . 1 . . . . 2 . 1 . . . . . Weapon 4 | . . . . 1 . 1 . . . . 1 . . . . . . . . . . . . . . . . . . . 1 . . Parts Attached 377 | 6 8 6 35 25 25 11 6 1 3 5 20 . 2 22 . 13 15 10 . 4 13 3 5 15 3 11 28 2 30 19 1 17 13 Power 66 | 1 . 2 10 2 4 . 2 . . 2 5 . . 2 . 4 3 4 . . 4 1 . 1 . 1 6 . 5 3 . 4 . Engine 25 | 1 . 2 10 2 3 . 1 . . 2 2 . . 1 . 1 . . . . . . . . . . . . . . . . . Core 12 | . . . . . 1 . 1 . . . . . . . . 3 2 . . . 3 1 . . . 1 . . . . . . . Reactor 29 | . . . . . . . . . . . 3 . . 1 . . 1 4 . . 1 . . 1 . . 6 . 5 3 . 4 . Propulsion 85 | 2 1 1 11 8 10 3 1 1 . 1 3 . 2 8 . . 2 2 . 1 3 . 1 4 . . 2 1 9 4 . 4 . Treads 49 | 2 1 1 5 6 8 3 1 1 . 1 3 . 2 . . . . 2 . . 1 . 1 2 . . 2 1 2 . . 4 . Leg 27 | . . . 2 . . . . . . . . . . 8 . . 2 . . 1 1 . . 2 . . . . 7 4 . . . Wheel 5 | . . . 4 1 . . . . . . . . . . . . . . . . . . . . . . . . . . . . . Hover 1 | . . . . . 1 . . . . . . . . . . . . . . . . . . . . . . . . . . . . Flight 3 | . . . . 1 1 . . . . . . . . . . . . . . . 1 . . . . . . . . . . . . Utility 120 | 1 4 1 5 7 2 4 1 . 3 . 11 . . 7 . 7 5 1 . 2 2 2 1 6 2 6 9 1 12 7 1 6 4 Device 75 | 1 2 1 1 1 1 3 1 . 3 . 8 . . 4 . 5 3 . . 2 1 1 1 4 2 4 6 . 7 4 1 6 2 Storage 9 | . 2 . 2 1 . . . . . . 1 . . 1 . . . . . . . . . . . 1 1 . . . . . . Processor 17 | . . . 1 3 1 . . . . . 1 . . 2 . 1 1 . . . 1 . . 2 . . 1 . 1 1 . . 1 Hackware 1 | . . . . . . . . . . . . . . . . . . . . . . . . . . 1 . . . . . . . Protection 17 | . . . 1 2 . 1 . . . . 1 . . . . 1 1 1 . . . 1 . . . . 1 1 4 1 . . 1 Artifact 1 | . . . . . . . . . . . . . . . . . . . . . . . . . . . . . . 1 . . . Weapon 106 | 2 3 2 9 8 9 4 2 . . 2 1 . . 5 . 2 5 3 . 1 4 . 3 4 1 4 11 . 4 5 . 3 9 Energy Gun 39 | 1 . . . 5 2 3 1 . . 1 1 . . 2 . 1 3 . . . 1 . . 1 . 3 6 . . 3 . 1 4 Energy Cannon 16 | . . . 2 . . . . . . . . . . 2 . . . . . . . . 3 . . 1 2 . 1 . . 2 3 Ballistic Gun 24 | 1 1 . 3 1 5 . . . . . . . . . . . 2 3 . 1 2 . . 1 . . 1 . . 2 . . 1 Ballistic Cannon 9 | . 1 1 1 1 . . . . . . . . . . . 1 . . . . . . . 2 . . . . 2 . . . . Launcher 6 | . . 1 . . 2 1 . . . 1 . . . . . . . . . . . . . . 1 . . . . . . . . Special Weapon 3 | . 1 . . . . . 1 . . . . . . . . . . . . . . . . . . . 1 . . . . . . Impact Weapon 1 | . . . 1 . . . . . . . . . . . . . . . . . . . . . . . . . . . . . . Slashing Weapon 8 | . . . 2 1 . . . . . . . . . 1 . . . . . . 1 . . . . . 1 . 1 . . . 1 Piercing Weapon . | . . . . . . . . . . . . . . . . . . . . . . . . . . . . . . . . . . Special Melee Weapon . | . . . . . . . . . . . . . . . . . . . . . . . . . . . . . . . . . . Unidentified Prototypes 83 | . 1 . . 3 7 . 2 . 2 . 5 . . 4 . . 6 3 . . 3 . . 10 . 2 19 1 7 4 . 1 3 Corrupted Parts 2 | . . . . . . . . . . . . . . . . . . . . 1 . . . . . . . . 1 . . . . System Corruption 20 | . . . . . . . . . . . . . . . . . . . . 10 . . . . . . . . 10 . . . . Parts Lost 62 | . 1 1 16 2 1 1 . . . . 3 1 . 14 . 2 . . . 14 . 1 1 1 . 1 . . 1 . . . 1 Power 16 | . . . 7 . . . . . . . . . . 3 . . . . . 3 . 1 . 1 . . . . 1 . . . . Propulsion 15 | . . . 6 . 1 . . . . . . 1 . 4 . . . . . 3 . . . . . . . . . . . . . Utility 14 | . . 1 1 2 . 1 . . . . 2 . . 2 . . . . . 3 . . . . . 1 . . . . . . 1 Weapon 17 | . 1 . 2 . . . . . . . 1 . . 5 . 2 . . . 5 . . 1 . . . . . . . . . . Highest Loss Streak 11 | . 1 1 6 2 1 1 . . . . 1 1 . 11 . 1 . . . 11 . 1 1 1 . 1 . . 1 . . . 1 To Critical Strikes 2 | . . . 1 . . . . . . . . . . . . . . . . . . . . . . . . . 1 . . . . Average Backups 19 | 1 6 14 17 18 17 17 17 15 14 14 15 16 16 15 18 19 19 18 17 15 14 19 19 20 20 22 25 24 24 22 22 22 19 Power . | . 1 1 . . . . . . . . . . . . . . . . . . . . . . 1 . . . . . . . . Propulsion 2 | . 1 3 4 3 1 3 3 3 2 2 1 1 1 1 2 2 1 3 5 4 2 3 3 1 2 2 1 1 3 . . . 2 Utility 9 | . . 2 4 4 3 5 6 4 4 5 9 10 11 11 15 16 16 12 9 8 10 10 11 12 11 12 15 14 12 11 10 11 8 Weapon 6 | 1 3 8 7 10 12 8 8 6 6 6 4 4 3 2 1 . 1 3 3 2 1 4 5 5 6 6 8 8 8 7 7 6 5 Tool/Special . | . . . . . . . . . . . . . . . . . . . . . . . . . . . . . . . . . . Unused Backups 111 | . . 2 3 7 4 6 1 2 1 . 5 3 7 1 . 1 1 3 . . . 2 2 6 1 2 8 5 5 9 1 19 4 Power 2 | . . . . . . 1 . . . . . . 1 . . . . . . . . . . . . . . . . . . . . Propulsion 27 | . . . . 2 . . . . 1 . . . 1 . . . . . . . . . . 2 . . . 2 3 7 . 9 . Utility 49 | . . . 1 . 2 1 1 1 . . 3 2 2 1 . 1 1 2 . . . . . 4 1 2 6 2 2 2 1 7 4 Weapon 30 | . . 2 2 5 2 4 . 1 . . 1 1 3 . . . . 1 . . . 2 2 . . . 2 1 . . . 1 . Tool/Special 3 | . . . . . . . . . . . 1 . . . . . . . . . . . . . . . . . . . . 2 . Average Slot Usage (%) 89 | . 99 99 87 88 99 98 96 96 100 100 95 91 91 83 85 84 87 86 86 85 70 83 83 75 76 80 86 87 89 95 96 88 80 Engine 4 | . 13 23 17 14 14 13 14 6 6 6 1 . . . . 1 . . . . . . . . . . . . . . . . . Core 2 | . . . . . 1 . . 6 6 6 1 . . . . 7 12 2 . . 5 10 14 5 4 4 1 . . . . . . Reactor 6 | . . . . . . . . 6 6 6 13 17 17 13 10 3 . 10 13 12 1 1 . 3 4 4 10 12 11 12 11 7 7 Treads 16 | . 29 34 11 24 32 33 34 33 33 33 24 20 20 11 . . . 3 4 1 12 14 16 18 19 13 13 16 11 . . 3 15 Leg 6 | . . . 6 . . . . . . . . . . 11 30 27 27 19 18 18 . 1 1 . . . 1 . 8 28 26 18 . Device 15 | . 20 14 11 5 11 19 14 16 20 20 22 23 23 15 15 12 14 13 13 13 16 14 14 10 9 15 17 17 16 15 15 15 11 Storage 5 | . 6 12 11 6 8 7 6 6 6 6 5 5 5 5 5 4 4 4 4 4 4 4 4 4 4 4 4 4 3 4 3 3 3 Processor 7 | . . . 7 6 11 . . . . . . . . 5 5 5 4 9 9 9 9 9 9 12 14 13 13 12 11 12 11 11 11 Protection 3 | . . . . 5 1 1 5 2 . . . . . . . 4 4 4 4 3 2 4 4 4 4 4 4 6 7 7 7 7 8 Energy Gun 9 | . 6 . . 10 4 12 10 13 20 19 23 22 23 11 5 2 4 7 . . 1 . . . . 8 13 16 11 9 11 11 11 Energy Cannon 1 | . . . 1 . 2 3 . . . . . . . 1 10 9 7 . . . 3 2 4 . 1 4 3 . . . . 1 4 Ballistic Gun 2 | . 17 . . 4 5 . . . . . . . . . . . 1 10 18 18 9 13 8 5 2 . . 1 1 1 2 1 . Ballistic Cannon 1 | . 1 13 2 2 . . . . . . . . . . . 2 3 . . . . . . 4 9 1 . . . . . . . Slashing Weapon 2 | . . . 4 . 2 3 . . . . . . . 3 5 1 . . . . . 3 4 2 . 4 4 2 3 3 3 2 2 Peak Build Rating 295 | 6 21 26 56 74 61 75 92 95 92 86 109 103 105 134 134 152 158 172 172 173 166 164 164 182 185 201 212 235 266 276 280 285 295 Average Rating 151 | 4 14 22 32 55 48 68 80 90 85 85 101 101 101 96 134 145 150 167 172 162 141 158 161 165 181 195 202 227 240 255 274 275 272 On Entrance 131 | . 6 20 26 56 46 61 74 91 85 86 85 102 99 100 134 134 150 156 172 172 71 160 164 163 179 175 198 207 230 251 264 275 273 Avg Prop Armor Cover (%) 4 | . . . 5 6 8 . . . . . . . . 12 11 2 1 7 8 8 14 1 1 4 3 4 2 5 1 . . . . Naked Turns . | . . . . . . . . . . . . . . . . . . . . . . . . . . . . . . . . . . Heaviest Build 222 | 10 31 39 132 149 88 88 93 86 81 82 104 97 97 98 95 131 129 140 132 138 126 122 130 170 174 196 190 199 214 211 208 222 221 Greatest Support 270 | 40 60 60 60 80 89 129 129 126 121 121 146 146 148 190 112 140 186 181 134 158 240 240 267 267 267 240 240 250 260 216 216 270 270 Greatest Overweight (x) 4 | . . . 3 4 1 . . . . . . . . 2 . . . 1 . 1 1 . . . . . 1 1 1 . . 1 1 Average Overweight (x) . | . . . 1 1 . . . . . . . . . . . . . . . . . . . . . . . . . . . . . Largest Inventory Capacity 26 | 5 16 16 26 26 21 21 21 21 21 21 21 21 21 21 21 21 21 21 21 21 21 21 21 21 21 26 26 26 26 26 26 26 26 Average Capacity 22 | 5 9 16 21 23 21 21 21 21 21 21 21 21 21 21 21 21 21 21 21 21 21 21 21 21 21 23 26 26 26 26 26 26 26 Most Carried 26 | 4 11 16 26 26 21 21 21 21 21 21 21 21 21 21 21 21 21 21 21 21 21 21 21 21 21 26 26 26 26 26 26 26 26 Average Carried 21 | 1 6 15 19 22 20 20 20 20 20 20 20 20 20 18 20 20 20 20 21 19 15 20 20 20 20 22 25 25 25 25 25 25 25 Final Capacity 26 | 5 16 16 26 21 21 21 21 21 21 21 21 21 21 21 21 21 21 21 21 21 21 21 21 21 21 26 26 26 26 26 26 26 26 Final Carried 26 | 3 9 16 23 21 21 21 21 19 21 21 19 21 21 20 21 21 21 21 21 19 20 21 21 21 20 25 26 26 24 26 26 26 22 Transmogrified Parts 32 | . . . . . 11 9 6 6 . . . . . . . . . . . . . . . . . . . . . . . . . Integrity Recovered 369 | . . . . . 143 84 55 87 . . . . . . . . . . . . . . . . . . . . . . . . . Class Distribution -------------------- 15% | Scavenger-Tank 10% | Scavenger-Mutant 10% | Mutant 10% | Tank 9% | Alien-Gunner 7% | Gunner 6% | Hauler-Tank 5% | Alien-Tank 5% | Hauler-Assassin 3% | Alien-Executioner 3% | Scavenger-Gunner Dominant Class ---------------- Mutant | -10/Materials Mutant | -10/Mines Scavenger-Mutant | -10/Subcaves Scavenger-Mutant | -8/Materials Scavenger-Mutant | -8/Storage Skirmisher | -7/Factory Commander-Tank | -7/Lower Caves Gunner | -7/Lower Caves Gunner | -7/Zion Gunner | -6/Proximity Caves Tank | -6/Factory Tank | -6/Lower Caves Tank | -6/Lower Caves Tank | -6/Data Miner Scavenger-Gunner | -5/Proximity Caves Scavenger-Tank | -5/Factory Scavenger-Tank | -5/Extension Messiah-Tank | -5/Cetus Scavenger-Tank | -5/Archives Scavenger-Tank | -5/Hub_04(d) Scavenger-Tank | -4/Factory Scavenger-Tank | -4/Upper Caves Scavenger-Tank | -4/Upper Caves Scavenger-Tank | -4/Warlord Scavenger-Tank | -3/Proximity Caves Scavenger-Tank | -3/Research Hauler-Assassin | -3/Testing Hauler-Tank | -2/Research Hauler-Assassin | -2/Quarantine Alien-Tank | -2/Section 7 Alien-Gunner | -1/Access Alien-Gunner | -1/Command Alien-Executioner | -1/Access_0 Resources | -11 -10 -10 -10 -8 -8 -7 -7 -7 -7 -6 -6 -6 -6 -6 -5 -5 -5 -5 -5 -5 -4 -4 -4 -4 -3 -3 -3 -2 -2 -2 -1 -1 -1 ----------- Run | Yrd Mat Min Sub Mat Sto Fac Low Low Zio Pro Fac Low Low Dat Pro Fac Ext Cet Arc Hub Fac Upp Upp War Pro Res Tes Res Qua Sec Acc Com Ac0 Matter Collected 19186 | 194 291 272 1278 736 1268 160 185 127 179 64 294 162 377 228 . 254 1018 292 176 275 256 476 469 2157 47 504 798 656 2435 958 589 1070 941 Remotely . | . . . . . . . . . . . . . . . . . . . . . . . . . . . . . . . . . . Salvage Created 35328 | 12 535 215 910 1007 1791 641 331 63 . 498 1867 143 403 435 . 413 515 600 460 987 326 956 355 2871 250 2089 1108 2296 2554 3494 1651 2936 2616 Parts 1721 | 4 38 15 72 57 76 24 13 3 . 23 65 5 10 25 . 27 21 34 30 52 14 50 15 123 5 101 75 97 119 211 81 111 125 Haulers Intercepted 14 | . 2 . . 1 5 1 . . . . 1 . . . . . . . . . 1 . . . . . . 1 . 1 1 . . Recyclers Shooed 6 | . . 1 . . . 1 . . . . 2 . . . . . . . . . . . . . . . . . . . 2 . . Parts Field Recycled . | . . . . . . . . . . . . . . . . . . . . . . . . . . . . . . . . . . Retrieved Matter . | . . . . . . . . . . . . . . . . . . . . . . . . . . . . . . . . . . Parts Self-Destructed 135 | . . . 35 . . . 8 3 2 24 . 5 8 . . . . . . . . 50 . . . . . . . . . . . Prevented 17 | . . . . . . . 7 . . 2 . 2 . . . . . . . . . . 4 . 2 . . . . . . . . Parts Restored . | . . . . . . . . . . . . . . . . . . . . . . . . . . . . . . . . . . Kills | -11 -10 -10 -10 -8 -8 -7 -7 -7 -7 -6 -6 -6 -6 -6 -5 -5 -5 -5 -5 -5 -4 -4 -4 -4 -3 -3 -3 -2 -2 -2 -1 -1 -1 ------- Run | Yrd Mat Min Sub Mat Sto Fac Low Low Zio Pro Fac Low Low Dat Pro Fac Ext Cet Arc Hub Fac Upp Upp War Pro Res Tes Res Qua Sec Acc Com Ac0 Combat Hostiles Destroyed 497 | . 11 15 38 23 32 3 8 1 . 9 30 3 8 4 . 9 6 7 4 9 1 16 3 41 8 27 11 28 29 33 17 25 38 Melee 14 | . . . 10 . . . . . . . . . . 2 . . . . . . . . . . . 1 . . 1 . . . . Guns 310 | . 8 . 2 21 22 1 . 1 . 7 25 2 6 2 . 1 2 7 4 9 1 16 1 8 . 18 8 28 20 32 17 22 19 Cannons 77 | . 2 7 6 . . 1 . . . . . . 1 . . 4 4 . . . . . 1 33 . 5 3 . . . . . 10 AOE 61 | . 1 8 20 1 10 . 7 . . 2 . . . . . 4 . . . . . . . . 7 . . . . 1 . . . Classes Destroyed 29 | 1 5 . 2 3 4 1 . . . 3 3 . . . . . . . . . . . 1 3 . . 1 . 1 1 . . . Worker 18 | . . . . . 1 1 . . . . . . . . . 2 . . . 1 . . . . . 2 2 4 . 4 . 1 . Builder 19 | . . . . . . . . . . . 2 . . . . 2 . . . . . . . . . 5 6 2 . 1 1 . . Tunneler 4 | 1 . . . . . 1 . . . . . . . . . . 1 . . . . . . . . 1 . . . . . . . Hauler 14 | . 2 . . 1 5 1 . . . . 1 . . . . . . . . . 1 . . . . . . 1 . 1 1 . . Recycler 16 | . 1 . . 1 1 4 . . . . . . . . . . 1 . . 2 1 . . . . . 1 . 1 . 1 2 . Operator 9 | . . . . 1 . . . . . . . . . . . 1 . . 1 . . . . . . . . 1 2 1 1 1 . Drone 6 | . . . . . . . . . . 2 . 1 . . . 1 . . . . . . . . 2 . . . . . . . . Turret 1 | . . . 1 . . . . . . . . . . . . . . . . . . . . . . . . . . . . . . Watcher 14 | . 1 . . 1 2 1 . . . . 1 . . . . . . 1 . . . . . . . . 2 . 2 2 1 . . Swarmer 79 | . 5 6 19 9 3 . 4 . . . 7 . 3 . . . . . . . . 7 . 1 6 3 . 4 . . 2 . . Saboteur 1 | . . . . . . . . . . . . . . . . . . . . . . . . 1 . . . . . . . . . Grunt 145 | . 6 9 5 7 19 . 4 . . 3 12 . 4 . . 4 2 . . 5 . 6 . 17 . 11 1 10 9 5 1 5 . Brawler 14 | . . . . . . . . . . 1 . . . . . . . . . . . . . 4 . 1 . 1 2 . . 5 . Duelist 8 | . . . . . 1 . . . . 1 . . . . . . 1 . . . . . . 1 . 2 . . . . . 2 . Protector 9 | . . . . . 2 . . . . 1 . . . . . . . . . . . . . 6 . . . . . . . . . Researcher 5 | . . . . . . . . . . . . . . . . . . . . . . . . . . . 1 . . 4 . . . Sentry 47 | . . . . 6 7 2 . 1 . 1 2 . 1 . . 2 1 . 4 2 1 2 . . . 4 . 4 3 2 1 1 . Demolisher 4 | . . . . . 2 . . . . . . . . . . . . . . . . . . 2 . . . . . . . . . Specialist 3 | . . . . . . . . . . . . . . . . . . . . . . . 2 1 . . . . . . . . . Hunter 27 | . . . . . . 1 . . . . 2 1 . . . . 1 . . 1 . . . 1 . . . 5 . 8 5 2 . Programmer 51 | . . . . . . . . . . . 2 1 . . . 2 . . . . . 1 . 3 . 6 9 4 4 8 8 3 . Heavy 3 | . . . . 1 . . . . . . . . . . . . . . . 1 . . . . . . . . . . . 1 . Q-Series 1 | . . . . . . . . . . . . . . . . . . . . . . . . . . . . . . 1 . . . Behemoth 2 | . . . . . . . . . . . 1 . . . . . . . . . . . . 1 . . . . . . . . . Cetus Guard 7 | . . . . . . . . . . . . . . . . . . 7 . . . . . . . . . . . . . . . Quarantine Guard 7 | . . . . . . . . . . . . . . . . . . . . . . . . . . . . . 7 . . . . M Guard 2 | . . . . . . . . . . . . . . . . . . . . . . . . . . . . . . . . 2 . Enhanced Grunt 26 | . . . . . . . . . . . . . . 4 . . . . . . . . . . . . . . . . . . 22 Enhanced Sentry 1 | . . . . . . . . . . . . . . . . . . . . . . . . . . . . . . . . . 1 Enhanced Hunter 6 | . . . . . . . . . . . . . . . . . . . . . . . . . . . . . . . . . 6 Tracker 2 | . . . . . . . . . . . . . . . . . . . . . . . . . . . . . . 2 . . . Combat Programmer 4 | . . . . . . . . . . . . . . . . . . . . . . . . . . . . . . 2 . 2 . Striker 2 | . . . . . . . . . . . . . . . . . . . . . . . . 2 . . . . . . . . . Executioner 6 | . . . . . . . . . . . . . . . . . . . . . . . . 1 . . . . . 4 . 1 . Alpha 7 3 | . . . . . . . . . . . . . . . . . . . . . . . . . . . . . 1 2 . . . Protovariant P 1 | . . . . . . . . . . . . . . . . . . . . . . . . . . . 1 . . . . . . Subdweller 14 | . . . 14 . . . . . . . . . . . . . . . . . . . . . . . . . . . . . . Decomposer 2 | . . . . . . . . . . . . 1 1 . . . . . . . . . . . . . . . . . . . . Packrat 1 | . . . . . . . . . . . . . . . . . . . . . . . 1 . . . . . . . . . . Thug 13 | . . . . . . . . . . . 4 . . . . . 1 . . . . . . 3 . . . . 3 . . . 2 Butcher 1 | . . . . . . . . . . . . . . . . . 1 . . . . . . . . . . . . . . . . Mutant 3 | . . . . . . . . . . 1 . . . . . . . . . . . . 1 1 . . . . . . . . . Best Kill Streak 17 | 1 5 6 5 6 9 4 4 1 . 4 7 1 4 1 . 11 2 5 2 5 1 12 2 10 6 6 3 17 6 14 5 6 5 Combat Bots Only 14 | . 5 6 5 6 6 1 4 1 . 4 7 1 4 1 . 7 2 4 1 3 1 12 2 10 6 5 3 14 6 9 4 6 5 Max Kills in Single Turn 6 | 1 2 2 4 1 6 2 3 1 . 2 2 1 1 1 . 2 1 1 1 2 1 2 1 2 2 2 2 3 2 2 2 3 1 Gunslinging 1 | . 1 . . . . . . . . 1 1 . . . . . . . . . . . . . . 1 . 1 1 1 . 1 . Exploded 4 | . 1 2 4 1 4 . 3 . . 1 . . . . . 1 . . . . . . . . 2 . . . . 1 . . . Melee 1 | . . . 1 . . . . . . . . . . 1 . . . . . . . . . . . 1 . . 1 . . . . Uniques/NPCs Destroyed 9 | . . . . . . . . . . . . . . . . . . . . . . . . . . . . . . . . 2 7 MAIN.C Shell (-1/Command) MAIN.C (-1/Command) A8 (-1/Access_0) A6 (-1/Access_0) A5 (-1/Access_0) A4 (-1/Access_0) Architect (-1/Access_0) A2 (-1/Access_0) A3 (-1/Access_0) Combat | -11 -10 -10 -10 -8 -8 -7 -7 -7 -7 -6 -6 -6 -6 -6 -5 -5 -5 -5 -5 -5 -4 -4 -4 -4 -3 -3 -3 -2 -2 -2 -1 -1 -1 -------- Run | Yrd Mat Min Sub Mat Sto Fac Low Low Zio Pro Fac Low Low Dat Pro Fac Ext Cet Arc Hub Fac Upp Upp War Pro Res Tes Res Qua Sec Acc Com Ac0 Hostile Shots Fired 3115 | . 46 56 168 106 74 90 15 9 . 22 156 29 33 65 . 120 59 32 10 159 17 114 24 28 26 173 52 170 222 239 98 85 618 Missed 919 | . 14 21 54 29 20 37 5 3 . 3 41 4 12 13 . 46 18 7 6 44 6 22 3 13 14 36 16 38 57 65 35 23 214 Hits 2196 | . 32 35 114 77 54 53 10 6 . 19 115 25 21 52 . 74 41 25 4 115 11 92 21 15 12 137 36 132 165 174 63 62 404 Melee 29 | . . . . . . . . . . . . 14 . . . 1 . . . . . . . . . 4 . 1 5 1 . 1 2 Projectile 2167 | . 32 35 114 77 54 53 10 6 . 19 115 11 21 52 . 73 41 25 4 115 11 92 21 15 12 133 36 131 160 173 63 61 402 AOE 15 | . . . . . 4 . . . . . . . . . . . . . . 1 . . . . . . . . . . . 10 . Critical Strikes 165 | . 2 . 4 6 2 . 2 . . 1 8 . . . . 2 5 9 . 8 1 4 3 2 1 15 4 2 17 8 2 4 53 Actively Blocked 4 | . . . . . . . . . . . . . . . . . . . . 2 . . . . . 2 . . . . . . . Part Disruptions 11 | . . . . . . . . . . . . . . . . . . . . . . . . . . . . . . 3 . 4 4 Damage Taken 31161 | . 326 506 2255 1295 1001 407 181 45 . 398 1394 208 305 2094 . 668 500 350 57 2896 234 1687 447 432 203 1900 413 1160 1393 1621 412 866 5507 Core 4289 | . 82 148 617 139 98 27 18 . . 37 152 . 27 445 . 48 31 27 . 140 . 143 49 12 . 119 11 41 28 419 20 12 1399 Absorbed by Shields 13281 | . . . . . . . . . . . 369 . . . . 294 417 334 58 925 . . . 140 119 1131 434 1125 1307 1203 438 874 4113 Reduced by Siege Mode 555 | . . . . . . . . . . . 58 . 10 . . . . 7 . 6 17 129 19 . 10 62 19 87 55 . . . 76 Redirected to Shielding 34 | . . . . . . . . . . . . . . . . . . . . . . . . . . . . . . . . . 34 Ignored by Resistances 9372 | . . . . 18 . . . . . . . . . 313 . . . . . . . . . . . . . 740 1536 1345 523 1082 3815 Regen/Repaired (Parts) 8889 | . . . . . 114 . . . . . . . . . . . 182 106 52 157 220 283 131 503 12 158 197 129 344 1881 154 153 4113 Core Remaining (%) 68 | 100 . . 7 . 68 . . . . 90 . . . . 40 . . . . 79 . . . . 84 . 91 . . 56 . . 71 Volleys Fired 1400 | 1 37 22 61 53 68 26 15 7 1 24 72 10 11 17 5 36 29 19 11 28 14 22 10 90 18 56 49 62 63 143 42 76 202 Largest 6 | 2 2 2 2 4 2 3 3 3 1 3 4 4 4 4 2 4 4 4 4 5 5 4 3 3 1 4 4 5 5 3 4 6 6 Hottest 670 | 60 100 60 86 173 130 211 178 261 88 237 298 271 271 271 180 282 282 180 130 165 272 191 176 167 105 395 395 419 499 300 380 470 670 Shots Fired 3651 | 2 72 37 78 140 124 36 20 11 1 48 249 38 45 34 11 53 91 76 44 118 33 67 22 217 18 141 107 193 183 354 133 322 533 Gun 2756 | 2 66 1 18 109 117 26 5 6 1 46 249 38 45 34 . 3 35 76 44 118 25 62 10 72 . 105 69 189 161 345 130 312 237 Cannon 823 | . 4 28 49 28 2 6 . . . . . . . . 11 43 56 . . . 8 5 12 145 8 36 38 4 22 9 3 10 296 Launcher 60 | . . 8 11 3 5 4 10 . . 2 . . . . . 7 . . . . . . . . 10 . . . . . . . . Special 12 | . 2 . . . . . 5 5 . . . . . . . . . . . . . . . . . . . . . . . . . Kinetic 1016 | 1 45 28 34 58 64 . . . . . . . . . . 12 33 38 44 118 22 62 10 217 . 3 . 29 27 37 32 65 37 Thermal 1506 | . 2 1 33 36 2 14 5 6 1 46 249 38 45 32 11 32 35 . . . 11 5 2 . 8 133 107 164 114 12 3 10 349 Explosive 36 | . . 8 11 3 5 . . . . 2 . . . . . 7 . . . . . . . . . . . . . . . . . Electromagnetic 251 | 1 25 . . 43 53 22 10 . . . . . . 2 . 2 18 . . . . . 10 . 10 5 . . 42 . 4 . 4 Slashing 742 | . . . . . . . . . . . . . . . . . . . . . . . . . . . . . . 305 94 200 143 Entropic 47 | . . . . . . . . . . . . . . . . . . . . . . . . . . . . . . . . 47 . Phasic 43 | . . . . . . . . . . . . . . . . . 5 38 . . . . . . . . . . . . . . . Robot Hit Streak 41 | 1 9 6 8 10 19 19 5 7 . 11 27 20 25 15 . 9 12 16 24 29 6 33 16 9 2 15 8 20 35 41 11 23 24 Robot Miss Streak 8 | 1 5 6 3 3 2 3 1 1 . 2 3 4 2 1 1 3 5 3 1 5 2 4 3 3 1 5 3 4 3 6 4 5 8 Penetration Max 4 | . . . . . . . . . . . . . . . . . 1 1 1 1 . 1 . 1 . 1 . 1 2 1 4 1 1 Secondary Targets 63 | . 3 . . 3 4 . . . . 3 6 . 2 . . . 1 2 . 1 . 7 . . . 2 . 9 7 7 2 3 1 Max Gunslinging Chain 2 | . 1 . . 1 1 . . . . 1 1 . 1 . . . 1 1 . 1 . 1 . . . 2 . 2 2 1 1 1 1 Shots Hit Robots 2389 | 1 47 18 71 94 106 27 6 8 . 28 174 22 25 55 . 20 48 62 29 77 22 51 13 131 1 85 59 136 141 193 75 250 314 Core Hits 1488 | 1 23 18 44 47 97 28 16 2 . 17 73 10 18 26 . 27 21 26 15 26 9 32 7 80 11 68 36 102 92 115 51 171 179 Critical Kills 142 | . . . . . . . . . . . . . . . . . . 1 2 3 . 2 . 32 . 9 2 22 17 10 11 14 17 Critical Parts Destroyed 145 | . . . . . . . . . . . . . . . . . . 1 2 3 2 4 . 23 . 1 1 15 16 12 22 29 14 Critical Strikes 384 | . . 2 . 1 . 1 . . . 2 18 2 3 4 . 1 . 5 6 6 2 7 . 62 . 13 3 43 37 28 34 66 38 Burn 33 | . . . . . . 1 . . . 2 18 2 3 1 . . . . . . . . . . . 2 . . 1 . . . 3 Meltdown 9 | . . . . . . . . . . . . . . . . . . . . . . . . . . 1 . . . . . 2 6 Destroy 314 | . . . . . . . . . . . . . . . . . . 2 6 6 2 7 . 60 . 9 3 43 36 22 33 56 29 Blast 7 | . . 2 . 1 . . . . . . . . . . . 1 . . . . . . . 2 . 1 . . . . . . . Sever 14 | . . . . . . . . . . . . . . 3 . . . . . . . . . . . . . . . 6 1 4 . Detonate 4 | . . . . . . . . . . . . . . . . . . . . . . . . . . . . . . . . 4 . Intensify 3 | . . . . . . . . . . . . . . . . . . 3 . . . . . . . . . . . . . . . Melee Attacks 307 | . . . 60 3 10 2 . . . . . . . 41 6 6 . . . . . 3 6 . . 13 36 10 27 35 12 30 7 Impact 21 | . . . 20 . 1 . . . . . . . . . . . . . . . . . . . . . . . . . . . . Slashing 286 | . . . 40 3 9 2 . . . . . . . 41 6 6 . . . . . 3 6 . . 13 36 10 27 35 12 30 7 Piercing . | . . . . . . . . . . . . . . . . . . . . . . . . . . . . . . . . . . Sneak Attacks 34 | . . . 4 . 3 . . . . . . . . 1 . 1 . . . . . . 1 . . 3 11 3 1 1 2 3 . Combat Hostiles . | . . . . . . . . . . . . . . . . . . . . . . . . . . . . . . . . . . Follow-up Attacks . | . . . . . . . . . . . . . . . . . . . . . . . . . . . . . . . . . . Damage Inflicted 90364 | 12 675 1120 3007 1821 3772 943 765 104 . 921 4068 445 624 1245 . 1588 1890 2056 913 2244 589 1623 510 6416 647 3584 3098 4107 4396 6637 2772 11371 16401 Guns 52361 | 12 546 . 186 1267 1701 388 80 104 . 689 4049 445 544 398 . 51 497 2056 913 2244 506 1480 169 1845 . 2496 1281 3698 3272 6497 2403 7936 4608 Cannons 21906 | . 63 322 598 306 32 124 . . . . . . 80 . . 525 1386 . . . 83 143 253 4571 . 690 415 44 534 . . 300 11437 Explosions 8235 | . 66 788 1247 231 1795 407 685 . . 232 . . . . . 937 . . . . . . . . 647 . . . 152 . . 692 356 Melee 7731 | . . . 976 . 244 . . . . . . . . 847 . 75 . . . . . . 88 . . 380 1402 342 438 140 356 2443 . Ramming 131 | . . 10 . 17 . 24 . . . . 19 . . . . . 7 . . . . . . . . 18 . 23 . . 13 . . Kinetic 18935 | . 393 322 457 577 798 . . . . . . . . . . 163 738 934 913 2244 459 1480 169 6416 . 147 . 359 417 271 356 796 526 Thermal 34199 | . 66 . 327 418 111 342 133 104 . 689 4049 445 624 381 . 555 863 . . . 130 143 . . 136 2909 1696 3383 2302 133 . 992 13268 Explosive 4744 | . . 788 1247 167 1716 . . . . 232 . . . . . 594 . . . . . . . . . . . . . . . . . Electromagnetic 5640 | 12 216 . . 642 903 577 632 . . . . . . 17 . 201 150 . . . . . 253 . 511 130 . . 1239 . 31 . 126 Impact 259 | . . . 259 . . . . . . . . . . . . . . . . . . . . . . . . . . . . . . Slashing 22513 | . . . 717 . 244 . . . . . . . . 847 . 75 . . . . . . 88 . . 380 1402 342 438 6233 2372 6894 2481 Piercing . | . . . . . . . . . . . . . . . . . . . . . . . . . . . . . . . . . . Entropic 2689 | . . . . . . . . . . . . . . . . . . . . . . . . . . . . . . . . 2689 . Phasic 1254 | . . . . . . . . . . . . . . . . . 132 1122 . . . . . . . . . . . . . . . Highest Corruption 76 | . . 9 76 . . . . . . . . 20 20 . . . . . . 17 2 13 29 31 . 6 18 3 16 2 2 3 16 Average Corruption 10 | . . 2 35 . . . . . . . . 18 20 . . . . . . 10 1 6 24 29 . 3 9 2 6 1 1 2 10 Corruption Purged . | . . . . . . . . . . . . . . . . . . . . . . . . . . . . . . . . . . Corruption Blocked . | . . . . . . . . . . . . . . . . . . . . . . . . . . . . . . . . . . Effects 380 | . . 16 86 . . . . . . . . 23 2 . . . . . . 6 . 14 31 4 . 9 49 16 38 3 8 14 61 Message Errors 95 | . . 2 24 . . . . . . . . 7 1 . . . . . . 1 . 4 12 2 . 2 11 1 8 . 2 5 13 Matter Fused 88 | . . 7 19 . . . . . . . . 3 . . . . . . . 2 . 3 2 2 . 1 10 4 12 1 2 3 17 Heat Flow Errors 46 | . . 1 11 . . . . . . . . 1 . . . . . . . 1 . 3 4 . . 2 9 2 3 . 2 1 6 Energy Discharges 50 | . . 2 9 . . . . . . . . 4 . . . . . . . 1 . 1 6 . . . 10 3 4 . 1 2 7 Parts Rejected 4 | . . . . . . . . . . . . . . . . . . . . . . . . . . 1 . 1 2 . . . . Parts Fused 2 | . . . . . . . . . . . . . . . . . . . . . . . 2 . . . . . . . . . . Data Loss (minor) 33 | . . . 11 . . . . . . . . 3 . . . . . . . . . 1 1 . . 2 4 . 4 1 . 1 5 Data Loss (major) 21 | . . 1 4 . . . . . . . . 4 . . . . . . . 1 . 1 1 . . . 2 1 2 . . . 4 Misfires 20 | . . 3 2 . . . . . . . . . 1 . . . . . . . . 1 2 . . . 2 3 2 . . 2 2 Alerts 5 | . . . 3 . . . . . . . . . . . . . . . . . . . . . . . . . 1 1 . . . Weapon Failures 16 | . . . 3 . . . . . . . . 1 . . . . . . . . . . 1 . . 1 1 1 . . 1 . 7 Overload Shots 1 | . . . . . 1 . . . . . . . . . . . . . . . . . . . . . . . . . . . . Overflow Damage 1900 | . . 46 109 1 1 . 5 . . 59 . . . . . 38 48 . . . . 2 85 239 50 175 462 61 60 80 140 159 80 Projectiles 461 | . . 33 . 1 . . . . . . . . . . . . 48 . . . . 2 . 239 . 13 . . 45 . . . 80 Explosions 213 | . . 13 47 . 1 . 5 . . 59 . . . . . 38 . . . . . . . . 50 . . . . . . . . Melee 1226 | . . . 62 . . . . . . . . . . . . . . . . . . . 85 . . 162 462 61 15 80 140 159 . Knockbacks 28 | . 1 2 6 2 . . . . . . . . . . . 1 1 . . . . . . 14 . . . . . . . . 1 Impact 2 | . . . 2 . . . . . . . . . . . . . . . . . . . . . . . . . . . . . . Kinetic 26 | . 1 2 4 2 . . . . . . . . . . . 1 1 . . . . . . 14 . . . . . . . . 1 Secondary . | . . . . . . . . . . . . . . . . . . . . . . . . . . . . . . . . . . Self-Inflicted Damage 551 | . . 137 63 48 59 . 17 . . . . . . . . 122 . . . . . . . . 39 . . . 66 . . . . Shots 16 | . . 3 2 1 2 . 1 . . . . . . . . 3 . . . . . . . . 2 . . . 2 . . . . Rammed 10 | . . 2 . . . 2 . . . . 3 . . . . . . . . . . . . . . 1 . 2 . . . . . Targets Rammed 14 | . . 2 . 1 . 2 . . . . 3 . . . . . 2 . . . . . . . . 1 . 2 . . 1 . . Kicked 3 | . . . . . . . . . . . . . . . . . 2 . . . . . . . . . . . . . 1 . . Crushed 1 | . . . . 1 . . . . . . . . . . . . . . . . . . . . . . . . . . . . . Highest Temperature 681 | . 21 163 275 516 301 259 242 296 . 199 401 . . . . 340 353 239 40 681 200 140 140 209 . 398 393 389 417 238 235 235 253 Average Temperature 107 | . 9 37 100 152 68 89 94 151 . 110 98 . . . . 102 119 126 15 90 86 59 53 19 . 86 108 121 125 117 148 155 112 Received Heat Transfer 4771 | . 129 105 288 549 441 120 72 12 . 135 443 20 63 . . 174 263 . 12 199 18 415 185 68 9 319 6 106 272 74 8 48 218 Thermoelectric Energy+ 10596 | . . . . . . . . . . . . . . . . . . . . . . . . . . . . . . 2868 1033 3113 3582 Effects 35 | . . . . 8 1 1 . 1 . . 2 . . . . 1 1 . . 8 . . . . . 1 . 3 4 . . 2 2 Shutdowns 4 | . . . . . . . . . . . . . . . . . . . . 2 . . . . . . . . 2 . . . . Energy Bleed 7 | . . . . . 1 . . 1 . . . . . . . 1 1 . . . . . . . . . . . 1 . . . 2 Interference 11 | . . . . 3 . 1 . . . . 1 . . . . . . . . 1 . . . . . . . 3 . . . 2 . Short Circuit 4 | . . . . 1 . . . . . . 1 . . . . . . . . 1 . . . . . 1 . . . . . . . Damage (minor) 3 | . . . . 1 . . . . . . . . . . . . . . . 1 . . . . . . . . 1 . . . . Damage (major) 6 | . . . . 3 . . . . . . . . . . . . . . . 3 . . . . . . . . . . . . . Siege Activations 59 | . . . . . . . . . . . 9 . 2 . . . . 1 4 5 1 4 1 . 1 6 5 6 9 . . . 5 Total Turns 1018 | . . . . . . . . . . . 166 . 22 . . . . 33 70 83 8 59 15 . 13 81 75 138 153 . . . 102 Longest Duration 54 | . . . . . . . . . . . 32 . 15 . . . . 33 46 39 8 37 15 . 13 26 29 54 45 . . . 54 Martial Activations . | . . . . . . . . . . . . . . . . . . . . . . . . . . . . . . . . . . Shielding Activations . | . . . . . . . . . . . . . . . . . . . . . . . . . . . . . . . . . . Robots Disrupted 1 | . . . . . . . 1 . . . . . . . . . . . . . . . . . . . . . . . . . . Combat Hostiles . | . . . . . . . . . . . . . . . . . . . . . . . . . . . . . . . . . . Robots Corrupted 15 | . . . . 1 1 2 1 . . . . . . . . . . . . . . . 1 . 1 . . . 7 . . . 1 Combat Hostiles 13 | . . . . 1 . 1 1 . . . . . . . . . . . . . . . 1 . 1 . . . 7 . . . 1 Parts Fried 51 | . . . . 2 4 1 4 . . . . . . . . . . . . . . . 6 . 4 1 . . 23 . 1 . 5 Impact Corruptions 1 | . . . 1 . . . . . . . . . . . . . . . . . . . . . . . . . . . . . . Robots Melted 20 | . . . . . . . . . . . 5 1 1 . . . . . . . . . . . . 2 . . 1 . . 2 8 Combat Hostiles 19 | . . . . . . . . . . . 4 1 1 . . . . . . . . . . . . 2 . . 1 . . 2 8 Parts Melted 130 | . . . 1 1 4 2 . . . 3 24 2 5 . . . . . . . . . . 1 . 21 8 11 15 . . 5 27 Heat Transferred 40337 | . 150 . 629 901 150 685 198 200 . 1331 9403 1040 1401 1249 . 237 . . . . 74 . . . 50 4300 1944 4805 3385 148 . 518 7539 Parts Sabotaged . | . . . . . . . . . . . . . . . . . . . . . . . . . . . . . . . . . . Parts Stolen . | . . . . . . . . . . . . . . . . . . . . . . . . . . . . . . . . . . Parts Stripped . | . . . . . . . . . . . . . . . . . . . . . . . . . . . . . . . . . . Power Chain Reactions 14 | . 1 . . 1 2 2 4 . . . . . . . . 1 . . . . . . . . 1 . . . 2 . . . . Alert | -11 -10 -10 -10 -8 -8 -7 -7 -7 -7 -6 -6 -6 -6 -6 -5 -5 -5 -5 -5 -5 -4 -4 -4 -4 -3 -3 -3 -2 -2 -2 -1 -1 -1 ------- Run | Yrd Mat Min Sub Mat Sto Fac Low Low Zio Pro Fac Low Low Dat Pro Fac Ext Cet Arc Hub Fac Upp Upp War Pro Res Tes Res Qua Sec Acc Com Ac0 Maximum Alert Level 4 | . . 1 . 1 3 1 . . . . 2 . . . . 2 2 1 . . . . . . . 2 1 2 3 4 3 4 . Low Security (%) 33 | 100 100 97 . 75 22 96 . . . . 25 . . . . 46 15 4 100 100 100 . . . . 35 . 5 . . . . . Level 1 27 | . . 2 . 24 19 3 . . . . 56 . . . . 10 79 95 . . . . . . . 40 99 35 24 46 . . . Level 2 18 | . . . . . 24 . . . . . 17 . . . . 43 4 . . . . . . . . 24 . 58 75 22 . 7 . Level 3 8 | . . . . . 34 . . . . . . . . . . . . . . . . . . . . . . . . 19 100 10 . Level 4 11 | . . . . . . . . . . . . . . . . . . . . . . . . . . . . . . 11 . 82 . Level 5 . | . . . . . . . . . . . . . . . . . . . . . . . . . . . . . . . . . . High Security . | . . . . . . . . . . . . . . . . . . . . . . . . . . . . . . . . . . Max Security . | . . . . . . . . . . . . . . . . . . . . . . . . . . . . . . . . . . Peak Influence 1396 | 5 108 220 . 307 883 308 . . . . 589 . . . . 452 492 304 127 198 110 . . . . 649 376 690 701 1396 1079 999 . Initial 836 | . . 5 . . 124 308 . . . . 365 . . . . . 196 268 80 32 12 . . . . 39 346 205 366 335 836 684 . Average 324 | . 22 18 . 110 503 54 . . . . 282 . . . . 219 280 240 92 118 30 . . . . 268 279 495 516 582 906 759 . Influence Increases 17404 | 5 313 399 560 684 1437 208 383 23 . 249 1169 80 180 . . 621 850 224 113 356 206 405 40 865 140 1031 542 978 937 1751 571 855 1229 Destroy 0b10 Robot/C 9680 | . 220 300 520 460 720 80 240 20 . 160 600 60 160 . . 180 440 140 80 180 80 320 40 740 120 620 240 620 580 900 340 480 40 Destroy 0b10 Robot/NC 625 | 5 20 . 5 20 65 45 . . . 15 25 . . . . 25 25 10 5 15 15 . . 30 10 50 55 40 25 55 25 40 . Destroy Leader 1468 | . 56 20 . 124 142 46 30 . . 10 114 20 20 . . 20 52 . . 50 22 10 . . 10 110 44 152 104 188 64 60 . Allied During Kill 967 | . . . 5 . 187 8 83 3 . 64 . . . . . . 273 34 1 . 22 . . 20 . 44 . 31 . 151 . 41 . Successful Hack 99 | . 11 . . 13 33 8 . . . . . . . . . 4 . . . . . . . . . . . . 12 11 7 . . Disable Machine 960 | . . . . 15 135 15 . . . . 15 . . . . 75 . . 15 45 45 . . . . . 105 15 60 180 45 75 120 Anti-Garrison Action 150 | . . . . . . . . . . . . . . . . 150 . . . . . . . . . . . . . . . . . Destroy Structure 2204 | . 6 64 . 22 65 6 . . . . 25 . . . . 152 60 40 12 36 22 . . . . 90 68 45 126 107 45 144 1069 Advance Influence 300 | . . . . . . . . . . . 300 . . . . . . . . . . . . . . . . . . . . . . Partial Spotted 30 | . . . . . . . . . . . . . . . . 15 . . . . . . . . . . 15 . . . . . . Lose Combat Pursuer 705 | . . 15 30 30 90 . 30 . . . 90 . . . . . . . . 30 . 75 . 75 . 15 15 75 30 45 45 15 . Miscellaneous 216 | . . . . . . . . . . . . . . . . . . . . . . . . . . 102 . . . 114 . . . Influence Decreases 16245 | 5 298 200 774 389 1053 887 328 78 . 145 694 659 180 . . 221 770 502 222 423 204 302 171 152 795 472 793 691 993 954 894 641 1355 Entered New Map 5522 | . . 10 112 . 171 371 . 11 . . 39 215 . . . . 204 212 122 61 14 11 26 . 713 19 271 161 287 262 558 387 1285 Time Decay 8998 | 5 298 185 562 369 542 365 288 67 . 105 466 434 180 . . 201 446 190 80 222 190 281 145 152 82 343 522 470 656 612 326 214 . Search Patrol Dispatched 100 | . . . . . . . . . . . 100 . . . . . . . . . . . . . . . . . . . . . . Lost Part 375 | . . 5 100 20 10 . . . . . 30 10 . . . 20 . . . 140 . 10 . . . 10 . . 10 . . . 10 Lost Ally 950 | . . . . . 180 1 40 . . 40 59 . . . . . 120 100 20 . . . . . . 100 . 60 40 80 10 40 60 Purge Threat 300 | . . . . . 150 150 . . . . . . . . . . . . . . . . . . . . . . . . . . . Squads Dispatched 73 | . 1 1 . 4 6 2 . . . 1 3 . . . . 7 3 . . 3 1 . . . . 4 4 8 2 13 8 2 . Investigation 6 | . . 1 . . . . . . . . . . . . . 1 2 . . . . . . . . . 1 1 . . . . . Extermination 25 | . . . . . . 2 . . . . 3 . . . . 1 . . . . 1 . . . . 2 3 2 1 6 3 1 . Reinforcement 22 | . 1 . . 1 1 . . . . . . . . . . 1 1 . . 3 . . . . . 2 . 2 1 6 3 . . Assault 14 | . . . . . 4 . . . . 1 . . . . . 3 . . . . . . . . . . . 3 . . 2 1 . Garrison 5 | . . . . 3 1 . . . . . . . . . . 1 . . . . . . . . . . . . . . . . . Intercept 1 | . . . . . . . . . . . . . . . . . . . . . . . . . . . . . . 1 . . . Searches Triggered 1 | . . . . . . . . . . . 1 . . . . . . . . . . . . . . . . . . . . . . Construction Impeded 3 | . . . . . . . . . . . . . . . . 1 1 . . . . . . . . . . . . 1 . . . Haulers Reinforced 5 | . . . . . . . . . . . . . . . . . . . . 1 . . . . . 1 . 1 . 1 1 . . Active Scanning Responses . | . . . . . . . . . . . . . . . . . . . . . . . . . . . . . . . . . . Cargo Convoy Interrupts . | . . . . . . . . . . . . . . . . . . . . . . . . . . . . . . . . . . Stealth | -11 -10 -10 -10 -8 -8 -7 -7 -7 -7 -6 -6 -6 -6 -6 -5 -5 -5 -5 -5 -5 -4 -4 -4 -4 -3 -3 -3 -2 -2 -2 -1 -1 -1 --------- Run | Yrd Mat Min Sub Mat Sto Fac Low Low Zio Pro Fac Low Low Dat Pro Fac Ext Cet Arc Hub Fac Upp Upp War Pro Res Tes Res Qua Sec Acc Com Ac0 Distress Signals 46 | . . . . 6 8 . . . . 1 3 . . . . . 2 2 . 3 . . . 2 . . . . 1 1 . 17 . Communications Jammed 85 | . . . . . . . . . . . . . . . . . . . . . . . . . . 13 16 10 . 23 23 . . Distress Signals 80 | . . . . . . . . . . . . . . . . . . . . . . . . . . 9 16 9 . 23 23 . . Times Spotted 811 | . 20 18 54 29 51 8 12 1 . 13 47 4 8 4 . 17 22 8 6 25 7 19 3 101 9 41 17 47 32 57 30 29 72 Peak Tracking Total 13 | . 4 6 6 5 9 3 4 1 . 5 7 3 4 2 . 4 4 5 2 6 3 13 2 10 4 6 3 9 6 10 6 8 7 Tactical Retreats 35 | . . 1 1 2 5 . 1 . . . 5 . . . . . . . . 2 . 4 . 3 . 1 1 3 2 1 1 1 1 Traps | -11 -10 -10 -10 -8 -8 -7 -7 -7 -7 -6 -6 -6 -6 -6 -5 -5 -5 -5 -5 -5 -4 -4 -4 -4 -3 -3 -3 -2 -2 -2 -1 -1 -1 ------- Run | Yrd Mat Min Sub Mat Sto Fac Low Low Zio Pro Fac Low Low Dat Pro Fac Ext Cet Arc Hub Fac Upp Upp War Pro Res Tes Res Qua Sec Acc Com Ac0 Traps Triggered 13 | . . . 1 . . . . . . . . . . . . . . . . 2 1 . . 1 . 1 2 1 1 1 . 2 . Indirectly . | . . . . . . . . . . . . . . . . . . . . . . . . . . . . . . . . . . Trap Hack Attempts . | . . . . . . . . . . . . . . . . . . . . . . . . . . . . . . . . . . Triggered . | . . . . . . . . . . . . . . . . . . . . . . . . . . . . . . . . . . Disarmed . | . . . . . . . . . . . . . . . . . . . . . . . . . . . . . . . . . . Reprogrammed . | . . . . . . . . . . . . . . . . . . . . . . . . . . . . . . . . . . Reused . | . . . . . . . . . . . . . . . . . . . . . . . . . . . . . . . . . . Traps Extracted . | . . . . . . . . . . . . . . . . . . . . . . . . . . . . . . . . . . Installed . | . . . . . . . . . . . . . . . . . . . . . . . . . . . . . . . . . . Triggered . | . . . . . . . . . . . . . . . . . . . . . . . . . . . . . . . . . . Machines | -11 -10 -10 -10 -8 -8 -7 -7 -7 -7 -6 -6 -6 -6 -6 -5 -5 -5 -5 -5 -5 -4 -4 -4 -4 -3 -3 -3 -2 -2 -2 -1 -1 -1 ---------- Run | Yrd Mat Min Sub Mat Sto Fac Low Low Zio Pro Fac Low Low Dat Pro Fac Ext Cet Arc Hub Fac Upp Upp War Pro Res Tes Res Qua Sec Acc Com Ac0 Machines Disabled 85 | . . 1 1 1 9 1 1 . . . 1 . . 1 . 6 2 . 1 3 3 2 2 1 . . 9 1 5 16 3 5 10 Max in Single Turn 2 | . . 1 1 1 2 1 1 . . . 1 . . 1 . 2 1 . 1 1 . 1 1 1 . . 1 . 1 1 1 1 1 Garrison Access 2 | . . . . . 1 . . . . . . . . . . 1 . . . . . . . . . . . . . . . . . Network Hub 1 | . . . . . . . . . . . . . . . . . . . . 1 . . . . . . . . . . . . . Energy Cycler 2 | . . . . . . . . . . . . . . . . . 2 . . . . . . . . . . . . . . . . Machines Repaired . | . . . . . . . . . . . . . . . . . . . . . . . . . . . . . . . . . . Machines Dismantled . | . . . . . . . . . . . . . . . . . . . . . . . . . . . . . . . . . . Machines Sabotaged . | . . . . . . . . . . . . . . . . . . . . . . . . . . . . . . . . . . Overloaded Fab Kills . | . . . . . . . . . . . . . . . . . . . . . . . . . . . . . . . . . . Hacking | -11 -10 -10 -10 -8 -8 -7 -7 -7 -7 -6 -6 -6 -6 -6 -5 -5 -5 -5 -5 -5 -4 -4 -4 -4 -3 -3 -3 -2 -2 -2 -1 -1 -1 --------- Run | Yrd Mat Min Sub Mat Sto Fac Low Low Zio Pro Fac Low Low Dat Pro Fac Ext Cet Arc Hub Fac Upp Upp War Pro Res Tes Res Qua Sec Acc Com Ac0 Machines Accessed 51 | . 3 2 2 5 10 2 . 1 . . . . 1 4 . 3 . . . . 2 1 1 1 . 3 2 2 1 3 1 1 . Terminals 25 | . 3 . . 5 8 1 . . . . . . . . . 1 . . . . . 1 . . . 1 . . . 3 1 1 . Fabricators 2 | . . . . . . . . . . . . . . . . 1 . . . . . . . . . . 1 . . . . . . Repair Stations 6 | . . . . . 1 . . . . . . . . . . 1 . . . . 1 . . . . . 1 2 . . . . . Recycling Units . | . . . . . . . . . . . . . . . . . . . . . . . . . . . . . . . . . . Scanalyzers 3 | . . . . . . 1 . . . . . . . . . . . . . . 1 . . . . . . . 1 . . . . Garrison Access 3 | . . . . . 1 . . . . . . . . . . . . . . . . . . . . 2 . . . . . . . Total Hacks 131 | . 9 2 5 10 19 8 . 1 . . . . 1 31 . 4 . . . . 7 5 1 1 . 5 3 6 3 6 3 1 . Successful 80 | . 5 2 5 3 9 4 . 1 . . . . 1 31 . 1 . . . . 3 5 1 1 . 1 . 1 1 3 1 1 . Failed 51 | . 4 . . 7 10 4 . . . . . . . . . 3 . . . . 4 . . . . 4 3 5 2 3 2 . . Catastrophic 17 | . . . . 4 3 . . . . . . . . . . 2 . . . . 1 . . . . 2 2 1 . 1 1 . . Database Lockouts . | . . . . . . . . . . . . . . . . . . . . . . . . . . . . . . . . . . Manual 141 | . 2 . . 5 2 4 1 . . . 20 . . . . 3 2 . . 3 6 . . 1 . 14 15 4 26 20 11 2 . Terminals 55 | . 9 . . 10 13 6 . . . . . . . . . 1 . . . . . 5 . . . 1 . . . 6 3 1 . Fabricators 4 | . . . . . . . . . . . . . . . . 2 . . . . . . . . . . 2 . . . . . . Repair Stations 16 | . . . . . 5 . . . . . . . . . . 1 . . . . 3 . . . . . 1 6 . . . . . Recycling Units . | . . . . . . . . . . . . . . . . . . . . . . . . . . . . . . . . . . Scanalyzers 9 | . . . . . . 2 . . . . . . . . . . . . . . 4 . . . . . . . 3 . . . . Garrison Access 5 | . . . . . 1 . . . . . . . . . . . . . . . . . . . . 4 . . . . . . . Terminal Hacks 68 | . 4 2 5 3 5 2 . 1 . . . . 1 31 . 1 . . . . . 5 1 1 . 1 . . . 3 1 1 . Record 21 | . . . 4 . . . . . . . . . . 11 . . . . . . . 5 1 . . . . . . . . . . Part Schematic 12 | . . . . . . . . . . . . . . 12 . . . . . . . . . . . . . . . . . . . Robot Schematic 5 | . . . . . . . . . . . . . . 5 . . . . . . . . . . . . . . . . . . . Robot Analysis 1 | . 1 . . . . . . . . . . . . . . . . . . . . . . . . . . . . . . . . Prototype ID Bank 6 | . 1 . . 1 1 . . . . . . . . 3 . . . . . . . . . . . . . . . . . . . Open Door 14 | . . 2 . . 3 . . 1 . . . . 1 . . 1 . . . . . . . 1 . . . . . 3 1 1 . Open DSF 1 | . . . . . . . . . . . . . . . . . . . . . . . . . . 1 . . . . . . . Branch Access Points 2 | . . . . 1 . 1 . . . . . . . . . . . . . . . . . . . . . . . . . . . Emergency Access Points 1 | . . . . 1 . . . . . . . . . . . . . . . . . . . . . . . . . . . . . Unreport Threat 2 | . . . . . 1 1 . . . . . . . . . . . . . . . . . . . . . . . . . . . Hauler Manifests 1 | . 1 . . . . . . . . . . . . . . . . . . . . . . . . . . . . . . . . Registered Components 1 | . 1 . . . . . . . . . . . . . . . . . . . . . . . . . . . . . . . . Proto ID Catalog 1 | . . . 1 . . . . . . . . . . . . . . . . . . . . . . . . . . . . . . Fabricator Hacks . | . . . . . . . . . . . . . . . . . . . . . . . . . . . . . . . . . . Repair Station Hacks 4 | . . . . . 3 . . . . . . . . . . . . . . . . . . . . . . 1 . . . . . Scan Component 3 | . . . . . 2 . . . . . . . . . . . . . . . . . . . . . . 1 . . . . . Repair 1 | . . . . . 1 . . . . . . . . . . . . . . . . . . . . . . . . . . . . Recycling Unit Hacks . | . . . . . . . . . . . . . . . . . . . . . . . . . . . . . . . . . . Scanalyzer 5 | . . . . . . 1 . . . . . . . . . . . . . . 3 . . . . . . . 1 . . . . Insert Component 1 | . . . . . . . . . . . . . . . . . . . . . 1 . . . . . . . . . . . . Analyze 1 | . . . . . . . . . . . . . . . . . . . . . 1 . . . . . . . . . . . . Retrieve Study 3 | . . . . . . 1 . . . . . . . . . . . . . . 1 . . . . . . . 1 . . . . Garrison Access Hacks 1 | . . . . . 1 . . . . . . . . . . . . . . . . . . . . . . . . . . . . Seal Access 1 | . . . . . 1 . . . . . . . . . . . . . . . . . . . . . . . . . . . . Unauthorized Hacks 2 | . 1 . . . . 1 . . . . . . . . . . . . . . . . . . . . . . . . . . . Terminals 2 | . 1 . . . . 1 . . . . . . . . . . . . . . . . . . . . . . . . . . . Botnet 2 | . 1 . . . . 1 . . . . . . . . . . . . . . . . . . . . . . . . . . . Fabricators . | . . . . . . . . . . . . . . . . . . . . . . . . . . . . . . . . . . Repair Stations . | . . . . . . . . . . . . . . . . . . . . . . . . . . . . . . . . . . Recycling Units . | . . . . . . . . . . . . . . . . . . . . . . . . . . . . . . . . . . Scanalyzers . | . . . . . . . . . . . . . . . . . . . . . . . . . . . . . . . . . . Garrison Access . | . . . . . . . . . . . . . . . . . . . . . . . . . . . . . . . . . . Data Cores Recovered 3 | . . . . 1 . . . . . . . . . . . . . . . . . . . . . . . 1 . . 1 . . Used 1 | . . . . 1 . . . . . . . . . . . . . . . . . . . . . . . . . . . . . Hacking Detections 31 | . 3 . . 4 6 2 . . . . . . . . . 2 . . . . 2 1 . . . 3 2 2 1 2 1 . . Full Trace Events 1 | . . . . . . . . . . . . . . . . 1 . . . . . . . . . . . . . . . . . Feedback Events . | . . . . . . . . . . . . . . . . . . . . . . . . . . . . . . . . . . Feedback Blocked . | . . . . . . . . . . . . . . . . . . . . . . . . . . . . . . . . . . Robot Schematics Acquired 12 | . . . . . . . . . 3 . . . . 5 . . . . . . . . . . . . 1 . . 3 . . . Robots Built . | . . . . . . . . . . . . . . . . . . . . . . . . . . . . . . . . . . Authchips . | . . . . . . . . . . . . . . . . . . . . . . . . . . . . . . . . . . Time . | . . . . . . . . . . . . . . . . . . . . . . . . . . . . . . . . . . Total Robot Build Rating . | . . . . . . . . . . . . . . . . . . . . . . . . . . . . . . . . . . Part Schematics Acquired 98 | . . . . . . . . . 16 . 12 . . 12 . . . . . . 1 . . . . . 13 . 20 24 . . . Parts Built . | . . . . . . . . . . . . . . . . . . . . . . . . . . . . . . . . . . Authchips . | . . . . . . . . . . . . . . . . . . . . . . . . . . . . . . . . . . Time . | . . . . . . . . . . . . . . . . . . . . . . . . . . . . . . . . . . Total Part Build Rating . | . . . . . . . . . . . . . . . . . . . . . . . . . . . . . . . . . . Part Studies Acquired 3 | . . . . . . 1 . . . . . . . . . . . . . . 1 . . . . . . . 1 . . . . Parts Repaired 1 | . . . . . 1 . . . . . . . . . . . . . . . . . . . . . . . . . . . . Time 26 | . . . . . 26 . . . . . . . . . . . . . . . . . . . . . . . . . . . . Parts Recycled . | . . . . . . . . . . . . . . . . . . . . . . . . . . . . . . . . . . Recycled Matter . | . . . . . . . . . . . . . . . . . . . . . . . . . . . . . . . . . . Retrieved Matter . | . . . . . . . . . . . . . . . . . . . . . . . . . . . . . . . . . . Retrieved Components . | . . . . . . . . . . . . . . . . . . . . . . . . . . . . . . . . . . Parts Scanalyzed 1 | . . . . . . . . . . . . . . . . . . . . . 1 . . . . . . . . . . . . Part Schematics Acquired 1 | . . . . . . . . . . . . . . . . . . . . . 1 . . . . . . . . . . . . Parts Damaged . | . . . . . . . . . . . . . . . . . . . . . . . . . . . . . . . . . . Bothacking | -11 -10 -10 -10 -8 -8 -7 -7 -7 -7 -6 -6 -6 -6 -6 -5 -5 -5 -5 -5 -5 -4 -4 -4 -4 -3 -3 -3 -2 -2 -2 -1 -1 -1 ------------ Run | Yrd Mat Min Sub Mat Sto Fac Low Low Zio Pro Fac Low Low Dat Pro Fac Ext Cet Arc Hub Fac Upp Upp War Pro Res Tes Res Qua Sec Acc Com Ac0 Used RIF Installer . | . . . . . . . . . . . . . . . . . . . . . . . . . . . . . . . . . . Robots Hacked . | . . . . . . . . . . . . . . . . . . . . . . . . . . . . . . . . . . Non-combat . | . . . . . . . . . . . . . . . . . . . . . . . . . . . . . . . . . . Combat . | . . . . . . . . . . . . . . . . . . . . . . . . . . . . . . . . . . Robot Hacks Applied . | . . . . . . . . . . . . . . . . . . . . . . . . . . . . . . . . . . Relay Couplers Released 4 | . . . . . . . . . . . . . . . . 4 . . . . . . . . . . . . . . . . . Machine Destruction 4 | . . . . . . . . . . . . . . . . 4 . . . . . . . . . . . . . . . . . Fabnet Peak Effective % . | . . . . . . . . . . . . . . . . . . . . . . . . . . . . . . . . . . Robots Rewired 9 | . . . . . . . . . . 1 . . . . . . 8 . . . . . . . . . . . . . . . . Allies Hacked 2 | . . . . . . . . . . . . . . . . . . . . . . . . . . 1 . . . 1 . . . Hacks Repelled . | . . . . . . . . . . . . . . . . . . . . . . . . . . . . . . . . . . Allies | -11 -10 -10 -10 -8 -8 -7 -7 -7 -7 -6 -6 -6 -6 -6 -5 -5 -5 -5 -5 -5 -4 -4 -4 -4 -3 -3 -3 -2 -2 -2 -1 -1 -1 -------- Run | Yrd Mat Min Sub Mat Sto Fac Low Low Zio Pro Fac Low Low Dat Pro Fac Ext Cet Arc Hub Fac Upp Upp War Pro Res Tes Res Qua Sec Acc Com Ac0 Total Allies 75 | . . . 2 . 12 5 . . 4 1 2 . . . . . 13 . . . 2 . . 2 . 9 . 3 3 5 1 3 8 Largest Group 10 | . . . 1 . 10 5 5 3 6 5 2 . . . . . 9 6 1 . 2 . . 2 . 6 . 2 3 4 1 3 4 Highest-Rated Group 549 | . . . 90 . 173 160 160 96 217 177 170 . . . . . 353 162 26 . 206 . . 178 . 323 . 269 90 460 27 549 326 Highest-Rated Ally 269 | . . . 90 . 31 32 32 32 39 39 85 . . . . . 85 39 26 . 103 . . 89 . 103 . 269 30 219 27 183 82 Zionite Dispatches 8 | . . . . . . . . . . . 1 . . . . . 1 . . . 1 . . . . 3 . 1 . . 1 . . Heavy 4 | . . . . . . . . . . . 1 . . . . . 1 . . . 1 . . . . 1 . . . . . . . Experimental 1 | . . . . . . . . . . . . . . . . . . . . . . . . . . . . 1 . . . . . Thermal Resupply 1 | . . . . . . . . . . . . . . . . . . . . . . . . . . 1 . . . . . . . Offense Resupply 1 | . . . . . . . . . . . . . . . . . . . . . . . . . . 1 . . . . . . . Hacking Resupply 1 | . . . . . . . . . . . . . . . . . . . . . . . . . . . . . . . 1 . . Total Orders 13 | . . . . . . . . . . . . . . . . . . . 1 1 . . . . . 4 . . . 6 1 . . STAY 5 | . . . . . . . . . . . . . . . . . . . 1 . . . . . . 1 . . . 3 . . . FOLLOW 3 | . . . . . . . . . . . . . . . . . . . . . . . . . . . . . . 3 . . . DROP 2 | . . . . . . . . . . . . . . . . . . . . . . . . . . 1 . . . . 1 . . EXPLORE 1 | . . . . . . . . . . . . . . . . . . . . . . . . . . 1 . . . . . . . RETURN 2 | . . . . . . . . . . . . . . . . . . . . 1 . . . . . 1 . . . . . . . Ally Attacks 444 | . . . 12 . 58 16 12 . 5 29 . . . . . . 65 16 . 15 7 . . 7 . 16 . 13 22 51 . 33 67 Total Damage 14442 | . . . 538 . 657 160 307 . 54 863 . . . . . . 2701 244 . . 995 . . 248 . 1045 . 829 315 2009 . 2093 1384 Kills 69 | . . . 3 . 8 2 4 . . 3 . . . . . . 19 1 . . 6 . . 2 . 6 . 3 . 10 . . 2 Allies Corrupted 3 | . . . . . . . . . . 1 . . . . . . . . . . . . . . . . . 2 . . . . . Allies Melted 1 | . . . . . . . . . . . . . . . . . . . . . . . . 1 . . . . . . . . . X0-1V1 Amusement Gains 772 | . 18 10 40 15 80 27 8 6 . . 10 . . 95 . 5 . . . 95 . 20 . 70 . 40 . 73 45 48 42 5 20 Good Acts 243 | . 3 8 40 2 9 6 4 5 . 1 10 6 3 . 2 3 7 1 1 1 2 5 2 4 1 7 9 6 12 24 3 28 28 Bad Acts 194 | . 1 16 72 4 6 2 . . . 1 5 8 . . 2 2 3 1 . 6 1 8 4 6 2 5 2 9 11 2 2 4 9 Intel | -11 -10 -10 -10 -8 -8 -7 -7 -7 -7 -6 -6 -6 -6 -6 -5 -5 -5 -5 -5 -5 -4 -4 -4 -4 -3 -3 -3 -2 -2 -2 -1 -1 -1 ------- Run | Yrd Mat Min Sub Mat Sto Fac Low Low Zio Pro Fac Low Low Dat Pro Fac Ext Cet Arc Hub Fac Upp Upp War Pro Res Tes Res Qua Sec Acc Com Ac0 Active Infowar (turns) 19675 | 27 572 354 1433 368 24 843 149 . . . 1 . . . . 123 . . . . . . . 1055 471 938 1455 1194 2447 2015 723 3020 2463 Optics 17580 | . . . 1433 368 . . . . . . . . . . . . . . . . . . . 1053 471 938 1455 1194 2447 2015 723 3020 2463 Sensors 4417 | . . . . . 24 843 . . . . . . . . . 123 . . . . . . . . . . 885 516 1627 399 . . . Terrain 149 | . . . . . . . 149 . . . . . . . . . . . . . . . . . . . . . . . . . . Seismic 953 | 27 572 354 . . . . . . . . . . . . . . . . . . . . . . . . . . . . . . . Cloaking 6884 | . . . . . . . . . . . . . . . . . . . . . . . . 2 . 411 1108 929 1909 1381 271 873 . Jamming 7020 | . . . . . . . . . . . . . . . . . . . . . . . . . 26 920 1363 1194 1016 1631 597 273 . ECM 17 | . . . . . . . . . . . 1 . . . . . . . . . . . . . . . 15 . 1 . . . . Robot Analysis Total 1 | . 1 . . . . . . . . . . . . . . . . . . . . . . . . . . . . . . . . Derelict Logs Recovered 13 | . . 2 2 . . . 1 2 . 1 . 2 . . 1 . . . . . . 1 1 . . . . . . . . . . Drone Launches 19 | . . . . . . . . . . . . . . . . . . . . 18 . . . . . 1 . . . . . . . Drone Recoveries 3 | . . . . . . . . . . . . . . . . . . . . 2 . . . . . 1 . . . . . . . Zionite Intel Received 22 | . . . . . . . . . . . 4 . . . . . . . . . . . . . . 1 3 . 7 5 2 . . Main Access 1 | . . . . . . . . . . . . . . . . . . . . . . . . . . . . . 1 . . . . Branch Access 1 | . . . . . . . . . . . . . . . . . . . . . . . . . . 1 . . . . . . . Emergency Access 1 | . . . . . . . . . . . 1 . . . . . . . . . . . . . . . . . . . . . . Guard Positions 3 | . . . . . . . . . . . . . . . . . . . . . . . . . . . 1 . 1 1 . . . Prototype Stockpiles 3 | . . . . . . . . . . . . . . . . . . . . . . . . . . . 1 . 1 1 . . . Component Schematics 2 | . . . . . . . . . . . . . . . . . . . . . . . . . . . . . 1 1 . . . Prototype Schematics 3 | . . . . . . . . . . . 1 . . . . . . . . . . . . . . . 1 . 1 . . . . Trap Installations 3 | . . . . . . . . . . . 1 . . . . . . . . . . . . . . . . . . 1 1 . . Active Terminals 2 | . . . . . . . . . . . . . . . . . . . . . . . . . . . . . 1 . 1 . . Active Garrisons 2 | . . . . . . . . . . . . . . . . . . . . . . . . . . . . . 1 1 . . . Depthwide Sectors/-1 1 | . . . . . . . . . . . 1 . . . . . . . . . . . . . . . . . . . . . . Exploration | -11 -10 -10 -10 -8 -8 -7 -7 -7 -7 -6 -6 -6 -6 -6 -5 -5 -5 -5 -5 -5 -4 -4 -4 -4 -3 -3 -3 -2 -2 -2 -1 -1 -1 ------------- Run | Yrd Mat Min Sub Mat Sto Fac Low Low Zio Pro Fac Low Low Dat Pro Fac Ext Cet Arc Hub Fac Upp Upp War Pro Res Tes Res Qua Sec Acc Com Ac0 Turns Passed 37236 | 81 1191 1703 2369 1048 1558 1174 884 581 1446 514 1205 1095 709 531 418 610 1106 394 177 466 621 743 569 1317 471 938 1455 1194 2447 2015 723 3020 2463 Spaces Moved 19613 | 47 525 914 1048 497 712 664 508 339 893 272 475 638 387 218 224 416 685 244 50 184 324 373 314 578 256 384 611 492 1144 1344 456 1677 1720 Core 8 | 8 . . . . . . . . . . . . . . . . . . . . . . . . . . . . . . . . . Treads 12939 | 39 525 914 368 237 712 664 508 339 893 272 475 638 387 96 . . . . . . 324 373 314 578 256 384 611 492 868 . . 489 1183 Legs 5285 | . . . 272 . . . . . . . . . . 122 224 416 685 244 50 184 . . . . . . . . 276 1168 456 1188 . Wheels 668 | . . . 408 260 . . . . . . . . . . . . . . . . . . . . . . . . . . . . . Hover . | . . . . . . . . . . . . . . . . . . . . . . . . . . . . . . . . . . Flight . | . . . . . . . . . . . . . . . . . . . . . . . . . . . . . . . . . . Fastest Speed 50 | 50 160 160 120 128 160 157 157 159 159 159 162 162 162 105 120 112 112 112 112 100 160 160 160 160 160 160 155 155 120 120 120 120 151 Average Speed 151 | 141 160 160 182 155 170 158 159 159 159 160 162 162 162 138 120 112 112 113 112 135 161 160 161 161 160 160 159 168 165 120 120 136 151 Slowest Speed 280 | 160 160 160 280 242 245 160 164 161 159 164 164 163 163 260 120 120 113 187 112 192 240 160 162 162 162 160 238 233 235 120 120 242 221 Overloaded Moves . | . . . . . . . . . . . . . . . . . . . . . . . . . . . . . . . . . . Propulsion Burnouts . | . . . . . . . . . . . . . . . . . . . . . . . . . . . . . . . . . . Robots Hopped . | . . . . . . . . . . . . . . . . . . . . . . . . . . . . . . . . . . Potential Cave-ins 10 | . . . . . . . . . . . . . . . . . . . . . . . . . . 2 2 3 . . . . 3 Cave-ins Triggered 2 | . . . 1 . . . . . . . . . . . . . . . . . . . . . . . . . . . . . 1 Teleports 3 | . . . . . . . . . . . . . . . . . . . . . . . . . . . . . . . . 1 2 Microwarps 59 | . . . . . . . . . . . . . . . . . . . . . . . . . . . . . . 5 . . 54 Exploration Rate (%) 55 | 4 88 99 55 58 92 21 70 57 86 53 13 81 63 80 48 15 83 56 73 19 9 56 46 78 60 18 80 20 89 79 19 55 77 Regions Visited 33 Branch Regions 24 Pre-discovered Areas 13 | . . . . . . . . 1 1 . 8 2 . 1 . . . . . . . . . . . . . . . . . . . Known Exits Taken 20 | . . . 1 1 1 1 1 . . 1 1 1 1 . 1 1 . . . 1 1 . . . 1 1 1 1 1 1 . 1 . Unknown Exits Taken 13 | 1 1 1 . . . . . 1 1 . . . . 1 . . 1 1 1 . . 1 1 1 . . . . . . 1 . . Scrap Searched 25 | . . 1 5 . . . 3 2 3 1 . 2 2 . . . . . . . . 3 2 . 1 . . . . . . . . Spaces Dug 276 | . 2 . 50 3 5 . 4 . . 23 5 . 1 . 6 42 2 . . . 2 2 3 . 3 13 22 7 16 17 12 12 24 Terrain Destroyed 1082 | . 6 72 86 27 64 3 9 . . 29 24 3 3 . 17 98 24 19 13 22 7 12 12 21 17 28 39 11 44 41 19 65 247 Melee 118 | . . . 7 3 5 . . . . . . . . . 6 3 . . . . . 1 3 . . 8 17 7 16 15 10 12 5 Projectile 554 | . 2 . 5 3 . 1 . . . 11 24 3 3 . 11 25 24 19 13 22 7 11 9 21 8 20 22 4 3 25 6 21 231 AOE 393 | . 4 72 74 21 59 2 9 . . 18 . . . . . 70 . . . . . . . . 9 . . . 21 . . 26 8 Terrain Rammed . | . . . . . . . . . . . . . . . . . . . . . . . . . . . . . . . . . . Walls Destroyed . | . . . . . . . . . . . . . . . . . . . . . . . . . . . . . . . . . . Machines Disabled . | . . . . . . . . . . . . . . . . . . . . . . . . . . . . . . . . . . Actions | -11 -10 -10 -10 -8 -8 -7 -7 -7 -7 -6 -6 -6 -6 -6 -5 -5 -5 -5 -5 -5 -4 -4 -4 -4 -3 -3 -3 -2 -2 -2 -1 -1 -1 --------- Run | Yrd Mat Min Sub Mat Sto Fac Low Low Zio Pro Fac Low Low Dat Pro Fac Ext Cet Arc Hub Fac Upp Upp War Pro Res Tes Res Qua Sec Acc Com Ac0 Total 24604 | 57 797 1122 1343 665 908 744 557 365 920 310 743 674 444 342 350 489 947 320 143 332 398 466 350 790 295 568 936 701 1508 1563 560 2275 1622 Wait 2150 | . 216 152 71 33 41 15 16 12 13 1 133 17 31 24 116 3 62 10 83 79 15 46 10 62 8 64 110 75 119 46 24 375 68 Move 18925 | 46 524 913 1047 496 711 663 507 338 892 271 474 637 386 217 223 415 684 243 49 183 323 372 313 577 255 383 610 492 1143 1172 455 1676 1235 Hop . | . . . . . . . . . . . . . . . . . . . . . . . . . . . . . . . . . . Pick Up 359 | 4 8 15 30 21 9 12 1 1 4 1 17 6 7 7 . 4 8 12 . 6 12 10 2 15 2 18 21 16 17 28 4 29 12 Fast Attach 150 | 5 1 1 6 11 10 3 5 . 1 1 3 . 1 14 . 5 2 5 . 3 9 . 2 2 . 3 6 1 9 17 . 14 10 Attach 143 | 1 2 2 18 6 . 1 1 . 2 . 6 1 . 7 . 2 1 1 . 8 9 2 1 5 . 4 5 2 12 13 1 3 27 Detach 88 | . . . 2 3 . . 4 . 2 1 2 . . 6 . 1 . . . 5 7 . . 8 . . 3 . 7 14 . 4 19 Swap 565 | . 8 7 37 15 36 10 5 4 2 6 18 . 1 6 . 13 19 7 . 3 3 6 2 17 10 18 71 26 92 58 20 19 26 Drop 354 | . 1 8 11 23 23 10 2 3 3 1 15 3 7 3 . 4 10 23 . 7 6 5 4 14 2 8 25 14 19 37 1 46 16 Fire 1400 | 1 37 22 61 53 68 26 15 7 1 24 72 10 11 17 5 36 29 19 11 28 14 22 10 90 18 56 49 62 63 143 42 76 202 Melee 306 | . . . 60 3 10 2 . . . . . . . 41 6 6 . . . . . 3 6 . . 13 36 10 27 35 12 30 6 Ram . | . . . . . . . . . . . . . . . . . . . . . . . . . . . . . . . . . . Kick 3 | . . . . . . . . . . . . . . . . . 2 . . . . . . . . . . . . . 1 . . Crush 10 | . . 2 . 1 . 2 . . . . 3 . . . . . . . . . . . . . . 1 . 1 . . . . . Escape Stasis 16 | . . . . . . . . . . . . . . . . . . . . 10 . . . . . . . 2 . . . 3 1 Rewire 135 | . . . . . . . 1 . . 4 . . . . . . 130 . . . . . . . . . . . . . . . . Trap . | . . . . . . . . . . . . . . . . . . . . . . . . . . . . . . . . . . Miscellaneous . | . . . . . . . . . . . . . . . . . . . . . . . . . . . . . . . . . . Route ------- -11/Scrapyard -10/Materials (discovered 5 exits: *Mat x3 / *Min / *Sub) -10/Mines (discovered 3 exits: *Mat x2 / *Sub) -10/Subcaves (discovered 2 exits: *Mat / [*Rec]) -8/Materials (discovered 5 exits: *Fac x3 / *Sto x2) -8/Storage -7/Factory (discovered 3 exits: *Fac / *Low x2) -7/Lower Caves -7/Lower Caves (discovered 2 exits: Fac / [*Zio]) -7/Zion -6/Proximity Caves -6/Factory (discovered 2 exits: *Fac / *Low) -6/Lower Caves -6/Lower Caves -6/Data Miner -5/Proximity Caves -5/Factory (discovered 3 exits: Fac / *Ext x2) -5/Extension (discovered 3 exits: *Fac x2 / [*Cet]) -5/Cetus (discovered 2 exits: *Fac / [*Arc]) -5/Archives (discovered 2 exits: Fac / *Hub) -5/Hub_04(d) -4/Factory -4/Upper Caves -4/Upper Caves (discovered 2 exits: *Res / *War) -4/Warlord -3/Proximity Caves -3/Research (discovered 6 exits: *Res x3 / Arm / *Tes x2) -3/Testing -2/Research (discovered 4 exits: *Acc x3 / *Qua) -2/Quarantine (discovered 3 exits: *Acc / *Sec / [*Frg]) -2/Section 7 -1/Access -1/Command (discovered 2 exits: [*Sur] / *Ac0) -1/Access_0 To Fleet Rendezvous History --------- Turn | Location | Event 7 | -11/Scrapyard | Discovered new exit (range 15) 82 | -11/Scrapyard | Entered Materials 236 | -10/Materials | Discovered new exit (range 5) 301 | -10/Materials | Build established: Mutant 469 | -10/Materials | Discovered new exit (range 7) 506 | -10/Materials | Prayed at D.C.S.S. Altar Unit 557 | -10/Materials | Discovered new exit (range 10) 685 | -10/Materials | Discovered new exit (range 11) 776 | -10/Materials | Discovered new exit (range 8) 957 | -10/Materials | Inventory capacity permanently improved by X0-1V1 (+1; -100 max core) 1036 | -10/Materials | X0-1V1 sent you into danger 1112 | -10/Materials | Propulsion slot count permanently improved by X0-1V1 (+1) 1273 | -10/Materials | Entered Mines 1354 | -10/Mines | Identified exit to Materials 1354 | -10/Mines | X0-1V1 revealed exit location to -9/Materials 1505 | -10/Mines | X0-1V1 mutated your Weapon slot to Power slot 1522 | -10/Mines | Joined a pair of Derelicts in attacking an 0b10 outpost 1744 | -10/Mines | Learned Materials terminal intel 1771 | -10/Mines | Met a Derelict who couldn't figure out how to use a Trap Extractor 1861 | -10/Mines | Discovered new exit (range 10) 1930 | -10/Mines | Discovered exit to Materials (range 10) 1948 | -10/Mines | Learned location of 2 exits from Materials 1972 | -10/Mines | Received a Rocket Launcher from a helpful Derelict 2162 | -10/Mines | X0-1V1 activates XOMVISION 2406 | -10/Mines | Found the Drone Emporium 2413 | -10/Mines | Found Prototype Device 2585 | -10/Mines | X0-1V1 mutated your Propulsion slot to Utility slot 2765 | -10/Mines | Sensors blinded by X0-1V1 2779 | -10/Mines | Core integrity restored by X0-1V1 (+31) 2802 | -10/Mines | X0-1V1 sent hostile G-34 Mercenary (x4) 2891 | -10/Mines | Build established: Scavenger-Mutant 2931 | -10/Mines | Core integrity restored by X0-1V1 (+31) 2934 | -10/Mines | X0-1V1 sent hostile G-34 Mercenary (x6) 2940 | -10/Mines | X0-1V1 mutated your Utility slot to Weapon slot 2940 | -10/Mines | Core integrity fell below 50% 2971 | -10/Mines | Core integrity permanently improved by X0-1V1 (+300) 2976 | -10/Mines | Entered Subcaves 2977 | -10/Subcaves | Approached by a straggling Scientist 2978 | -10/Subcaves | Identified exit to Materials 2978 | -10/Subcaves | X0-1V1 revealed exit location to -8/Materials 2999 | -10/Subcaves | X0-1V1 sent allied H-61 Shepherd (x1) 3012 | -10/Subcaves | X0-1V1 upgraded hostiles (x1) 3030 | -10/Subcaves | X0-1V1 sent you into danger 3035 | -10/Subcaves | System corruption reached 10% 3053 | -10/Subcaves | Discovered new exit (range 14) 3055 | -10/Subcaves | X0-1V1 tapped a No Entrance sign 3066 | -10/Subcaves | X0-1V1 mutated your Weapon slot to Propulsion slot 3068 | -10/Subcaves | Core integrity restored by X0-1V1 (+121) 3087 | -10/Subcaves | X0-1V1 activates XOMVISION 3206 | -10/Subcaves | X0-1V1 sent hostile S-10 Pest (x4) 3213 | -10/Subcaves | X0-1V1 sent you into danger 3236 | -10/Subcaves | X0-1V1 mutated your Propulsion slot to Utility slot 3360 | -10/Subcaves | A swath of the cavern ceiling suddenly collapsed 3381 | -10/Subcaves | X0-1V1 sent hostile G-34 Mercenary (x5) 3504 | -10/Subcaves | X0-1V1 sent hostile S-10 Pest (x4) 3573 | -10/Subcaves | Build established: Mutant 3599 | -10/Subcaves | X0-1V1 sent hostile S-10 Pest (x3) 3695 | -10/Subcaves | X0-1V1 sent hostile G-34 Mercenary (x4) 3699 | -10/Subcaves | X0-1V1 whisked you away to safety 3700 | -10/Subcaves | Learned Materials non-interactive machine intel 3730 | -10/Subcaves | System corruption reached 30% 3748 | -10/Subcaves | Visited Clippyterm 3755 | -10/Subcaves | Learned Factory trap positions 3755 | -10/Subcaves | Learned Factory stockpile data 3815 | -10/Subcaves | X0-1V1 sent hostile S-10 Pest (x5) 3822 | -10/Subcaves | X0-1V1 sent allied H-61 Shepherd (x1) 3851 | -10/Subcaves | X0-1V1 rewrote H-61 Shepherd IFF filter 3891 | -10/Subcaves | Lost 4 parts (2p1n1w) 3932 | -10/Subcaves | Build established: Scavenger-Mutant 3938 | -10/Subcaves | X0-1V1 rewrote H-61 Shepherd IFF filter 3978 | -10/Subcaves | X0-1V1 sent you into danger 4009 | -10/Subcaves | Lost 3 parts (2p1n) 4200 | -10/Subcaves | Shifting Twisted Machinery released Sub. Monowheel 4214 | -10/Subcaves | Shifting Twisted Machinery released Scrap Shield 4257 | -10/Subcaves | Core integrity restored by X0-1V1 (+108) 4264 | -10/Subcaves | X0-1V1 activates XOMVISION 4506 | -10/Subcaves | Core integrity restored by X0-1V1 (+81) 4656 | -10/Subcaves | A Subdweller sparked back to life 4656 | -10/Subcaves | A Subdweller sparked back to life 4656 | -10/Subcaves | A Subdweller sparked back to life 4671 | -10/Subcaves | Crushed by falling debris 4693 | -10/Subcaves | Found Prototype Leg 4702 | -10/Subcaves | Lost 6 parts (2p2n1u1w) 4785 | -10/Subcaves | Visited 4L-MR0's lab 4791 | -10/Subcaves | Identified Arachnoskeleton 4801 | -10/Subcaves | Found Tower Shield 4805 | -10/Subcaves | Found Prototype Device 4915 | -10/Subcaves | Learned Materials security intel 4947 | -10/Subcaves | Ambushed by Subdweller buried in earth 5031 | -10/Subcaves | Build established: Hauler-Mutant 5062 | -10/Subcaves | Shifting Twisted Machinery released Battle Cannon 5062 | -10/Subcaves | Shifting Twisted Machinery released Spk. Treads 5116 | -10/Subcaves | Core integrity fell below 20% 5121 | -10/Subcaves | Attached Tower Shield, gained temporary slots: Power, Propulsion x2, Utility x2, Weapon x2 5345 | -10/Subcaves | Entered Materials 5345 | -8/Materials | Evolved 4 slots: Propulsion x2, Utility x1, Weapon x1 5346 | -8/Materials | Identified exit to Factory 5348 | -8/Materials | Loaded intel: 33 non-interactive machine locations 5349 | -8/Materials | Loaded intel: 12 terminal locations 5576 | -8/Materials | X0-1V1 activates XOMVISION 5617 | -8/Materials | X0-1V1 vaporized surrounding terrain (radius 17) 5831 | -8/Materials | Discovered exit to Factory (range 16) 5905 | -8/Materials | Garrison activated, responded to threat 6084 | -8/Materials | Identified exit to Storage 6189 | -8/Materials | Build established: Scavenger-Mutant 6388 | -8/Materials | X0-1V1 redirected Transport squads to designated parking area 6393 | -8/Materials | Entered Storage 6582 | -8/Storage | X0-1V1 sent someone to keep an eye on you 6583 | -8/Storage | Repaired Lgt. Treads 6767 | -8/Storage | X0-1V1 sent hostile S-10 Pest (x3) 6955 | -8/Storage | X0-1V1 foreshadows a heat wave 7067 | -8/Storage | Assisted by bots powering up and referring to "LRC-V3" 7112 | -8/Storage | Ambient heat levels rising (+10) 7182 | -8/Storage | Garrison activated, responded to threat 7193 | -8/Storage | First assault squad dispatched 7217 | -8/Storage | X0-1V1 revealed exit location to -7/Factory 7238 | -8/Storage | Lost 9 allies 7263 | -8/Storage | Ambient heat levels rising (+10) 7338 | -8/Storage | Met a pair of Derelict thieves 7347 | -8/Storage | Identified Sfc. Transmogrifier 7533 | -8/Storage | Ambient heat levels falling (-10) 7782 | -8/Storage | Ambient heat levels falling (-10) 7951 | -8/Storage | Entered Factory 7951 | -7/Factory | Accompanied by 1 ally 7951 | -7/Factory | Evolved 2 slots: Propulsion x1, Weapon x1 7952 | -7/Factory | Loaded intel: 104 trap records 7991 | -7/Factory | Identified exit to Lower Caves 7993 | -7/Factory | Build established: Mutant 8377 | -7/Factory | X0-1V1 redirected Transport squads to designated parking area 8473 | -7/Factory | X0-1V1 activates XOMVISION 8584 | -7/Factory | Build established: Skirmisher 8744 | -7/Factory | Discovered new exit (range 5) 9088 | -7/Factory | X0-1V1 sent you to a vault 9125 | -7/Factory | Entered Lower Caves 9125 | -7/Lower Caves | Accompanied by 5 allies 9188 | -7/Lower Caves | Identified exit to Lower Caves 9188 | -7/Lower Caves | X0-1V1 revealed exit location to -7/Lower Caves 9282 | -7/Lower Caves | Learned 4 Factory zone layouts 9377 | -7/Lower Caves | Build established: Commander-Tank 9558 | -7/Lower Caves | X0-1V1 activates XOMVISION 9596 | -7/Lower Caves | Acquired the password to a Derelict Tinkerer's latest research 9608 | -7/Lower Caves | Found Prototype Special Weapon 9608 | -7/Lower Caves | Identified Molecular Deconstructor 9769 | -7/Lower Caves | Found Alien Artifact 9769 | -7/Lower Caves | Identified Core Expander 9769 | -7/Lower Caves | Installed Core Expander, added new Power slot 9843 | -7/Lower Caves | Caught by Unaware searching for contraband prototypes 9978 | -7/Lower Caves | Build established: Tank 10009 | -7/Lower Caves | Entered another Lower Caves area 10009 | -7/Lower Caves | Accompanied by 3 allies 10196 | -7/Lower Caves | Murdered Warlord Statue 10238 | -7/Lower Caves | Found Prototype Device 10278 | -7/Lower Caves | Identified exit to Factory 10278 | -7/Lower Caves | X0-1V1 revealed exit location to -6/Factory 10287 | -7/Lower Caves | X0-1V1 activates XOMVISION 10306 | -7/Lower Caves | Attracted the attention of an 0b10 checkpoint 10475 | -7/Lower Caves | Discovered new exit (range 12) 10590 | -7/Lower Caves | Entered Zion 10590 | -7/Zion | Accompanied by 2 allies 10597 | -7/Zion | Build established: Gunner 10643 | -7/Zion | Discovered new exit (range 15) 11260 | -7/Zion | Received a visual enhancement algorithm 11318 | -7/Zion | Learned Factory emergency access door positions 11327 | -7/Zion | Given A8's code to call for help 11402 | -7/Zion | Given the Hacking Drone Bay 11403 | -7/Zion | Found Prototype Device 11669 | -7/Zion | Met Imprinter 11693 | -7/Zion | Imprinted 11695 | -7/Zion | Declared Zion's savior 11747 | -7/Zion | Identified Hacking Drone Bay 11755 | -7/Zion | Identified Bomb Drone Bay 12036 | -7/Zion | Entered Proximity Caves 12036 | -6/Proximity Caves | Accompanied by 4 allies 12158 | -6/Proximity Caves | Spotter reported a threat 12308 | -6/Proximity Caves | X0-1V1 revealed exit location to -6/Factory 12309 | -6/Proximity Caves | Spotter reported a threat 12310 | -6/Proximity Caves | Attracted the attention of an 0b10 outpost 12435 | -6/Proximity Caves | Lost 3 allies 12550 | -6/Proximity Caves | Entered Factory 12550 | -6/Factory | Accompanied by 1 ally 12550 | -6/Factory | Evolved 2 slots: Utility x1, Weapon x1 12723 | -6/Factory | Retrieved Zion intel report: Trap Installations 12744 | -6/Factory | X0-1V1 activates XOMVISION 12765 | -6/Factory | Discovered new exit (range 3) 12868 | -6/Factory | X0-1V1 sent you to a vault 12886 | -6/Factory | Found Prototype Device 12886 | -6/Factory | Identified Exp. ECM Suite 12900 | -6/Factory | Search patrols dispatched 12925 | -6/Factory | Retrieved Zion intel report: Prototype Schematics 12970 | -6/Factory | Retrieved Zion intel report: Emergency Access 13056 | -6/Factory | Retrieved Zion intel report: Depthwide Sectors/-5 13057 | -6/Factory | Zion Heavy squad teleported in 13058 | -6/Factory | Spotted B-75 Beast 13058 | -6/Factory | X0-1V1 whisked you away to safety 13134 | -6/Factory | Build established: Tank 13243 | -6/Factory | Destroyed 7 combat bots 13249 | -6/Factory | Found Prototype Protection 13249 | -6/Factory | Identified Zio. Weapon Casing 13256 | -6/Factory | Discovered new exit (range 7) 13286 | -6/Factory | Destroyed B-75 Beast 13437 | -6/Factory | Identified exit to Lower Caves 13622 | -6/Factory | X0-1V1 sent hostile Thug (x4) 13755 | -6/Factory | Entered Lower Caves 14084 | -6/Lower Caves | Identified exit to Lower Caves 14084 | -6/Lower Caves | X0-1V1 revealed exit location to -6/Lower Caves 14266 | -6/Lower Caves | Encountered a Warlord checkpoint 14286 | -6/Lower Caves | Hyp. Coil Gun reconfigured into Item Mimic 14323 | -6/Lower Caves | System corruption reached 10% 14829 | -6/Lower Caves | X0-1V1 activates XOMVISION 14840 | -6/Lower Caves | X0-1V1 sent hostile H-66 Slayer (x3) 14850 | -6/Lower Caves | Entered another Lower Caves area 15098 | -6/Lower Caves | Found DCF Scrap (10 items) 15340 | -6/Lower Caves | Attracted the attention of an 0b10 checkpoint 15478 | -6/Lower Caves | Identified exit to Data Miner 15478 | -6/Lower Caves | X0-1V1 revealed exit location to -6/Data Miner 15559 | -6/Lower Caves | Entered Data Miner 15559 | -6/Data Miner | Discovered new exit (range 7) 15590 | -6/Data Miner | Met Data Miner 15631 | -6/Data Miner | Learned location of Section 7 (-2) 15631 | -6/Data Miner | Acquired the access code to Warlord's prototype stash 15647 | -6/Data Miner | Received God Mode back door access code from Data Miner 15663 | -6/Data Miner | Data Conduit disabled 15857 | -6/Data Miner | Lost 11 parts (2p3n1u5w) 15865 | -6/Data Miner | Found Prototype Device 15865 | -6/Data Miner | Identified Exp. Thermal Shield 15905 | -6/Data Miner | Core integrity fell below 50% 15946 | -6/Data Miner | Attached Arachnoskeleton, gained temporary slots: Propulsion x3 15967 | -6/Data Miner | Found Exp. Thermal Shield 16090 | -6/Data Miner | Entered Proximity Caves 16165 | -5/Proximity Caves | Learned location of 1 exit from Factory 16232 | -5/Proximity Caves | Build established: Scavenger-Gunner 16288 | -5/Proximity Caves | Identified exit to Factory 16288 | -5/Proximity Caves | X0-1V1 revealed exit location to -5/Factory 16499 | -5/Proximity Caves | Received a Behemoth hack from an annoying Tinkerer 16508 | -5/Proximity Caves | Entered Factory 16508 | -5/Factory | Evolved 2 slots: Utility x2 16509 | -5/Factory | Identified exit to Extension 16510 | -5/Factory | Identified exit to Factory 16779 | -5/Factory | X0-1V1 activates XOMVISION 16799 | -5/Factory | X0-1V1 downgraded hostiles (x4) 16854 | -5/Factory | Destroyed 7 combat bots 16855 | -5/Factory | Imp. Fusion Compressor reconfigured into Item Mimic 17096 | -5/Factory | Build established: Scavenger-Tank 17108 | -5/Factory | First assault squad dispatched 17118 | -5/Factory | Entered Extension 17124 | -5/Extension | X0-1V1 dreamt of freedom 17129 | -5/Extension | Rescued a captive Derelict 17130 | -5/Extension | Rescued a captive Derelict 17131 | -5/Extension | Rescued a captive Derelict 17135 | -5/Extension | Rescued a captive Derelict 17136 | -5/Extension | Rescued a captive Derelict 17143 | -5/Extension | Rescued a captive Derelict 17147 | -5/Extension | Rescued a captive Derelict 17179 | -5/Extension | Zion Heavy squad teleported in 17246 | -5/Extension | X0-1V1 revealed exit location to -4/Factory 17678 | -5/Extension | Spotted B-75 Beast 17692 | -5/Extension | Allies destroyed B-75 Beast 17700 | -5/Extension | Spotted B-75 Beast 17714 | -5/Extension | Allies destroyed B-75 Beast 17742 | -5/Extension | Lost 3 allies 17860 | -5/Extension | Found Prototype Protection 17860 | -5/Extension | Identified Med. Regenerative Plating 17877 | -5/Extension | X0-1V1 sent you into danger 17927 | -5/Extension | Extracted ID and sensor layout for unrecognized location from A7's data core 18138 | -5/Extension | X0-1V1 destroyed Energy Cycler 18156 | -5/Extension | Discovered exit to Factory (range 10) 18157 | -5/Extension | Discovered new exit (range 6) 18159 | -5/Extension | Build established: Scavenger-Gunner 18207 | -5/Extension | Lost 3 allies 18224 | -5/Extension | Entered Cetus 18224 | -5/Cetus | Accompanied by 6 allies 18244 | -5/Cetus | Spotted Cetus Guard 18245 | -5/Cetus | Spotted Cetus Guard 18248 | -5/Cetus | Spotted Cetus Guard 18252 | -5/Cetus | Destroyed Cetus Guard 18259 | -5/Cetus | Destroyed Cetus Guard 18263 | -5/Cetus | Spotted Cetus Guard 18277 | -5/Cetus | Destroyed Cetus Guard 18307 | -5/Cetus | Lost 4 allies 18372 | -5/Cetus | Discovered new exit (range 15) 18473 | -5/Cetus | Spotted Cetus Guard 18474 | -5/Cetus | Spotted Cetus Guard 18478 | -5/Cetus | Spotted Cetus Guard 18482 | -5/Cetus | Destroyed Cetus Guard 18493 | -5/Cetus | Destroyed Cetus Guard 18501 | -5/Cetus | Destroyed Cetus Guard 18501 | -5/Cetus | Spotted Cetus Guard 18510 | -5/Cetus | Destroyed Cetus Guard 18527 | -5/Cetus | Discovered exit to Factory (range 15) 18532 | -5/Cetus | Scared off Revision 17 18618 | -5/Cetus | Entered Archives 18618 | -5/Archives | Accompanied by 1 ally 18760 | -5/Archives | X0-1V1 revealed exit location to -4/Factory 18778 | -5/Archives | Discovered new exit (range 16) 18795 | -5/Archives | Entered Hub_04(d) 18834 | -5/Hub_04(d) | Discovered exit to Factory (range 13) 18837 | -5/Hub_04(d) | Build established: Scavenger-Tank 18860 | -5/Hub_04(d) | X0-1V1 vaporized surrounding terrain (radius 16) 19049 | -5/Hub_04(d) | Network Hub disabled 19056 | -5/Hub_04(d) | Spotted Lightning 19056 | -5/Hub_04(d) | Spotted Lightning 19057 | -5/Hub_04(d) | Spotted Lightning 19064 | -5/Hub_04(d) | Weapon slot count temporarily expanded by X0-1V1 (+1) 19105 | -5/Hub_04(d) | Lost 11 allies 19189 | -5/Hub_04(d) | System corruption reached 10% 19217 | -5/Hub_04(d) | X0-1V1 sent hostile H-66 Slayer (x3) 19261 | -5/Hub_04(d) | Entered Factory 19261 | -4/Factory | Evolved 2 slots: Propulsion x1, Utility x1 19273 | -4/Factory | Lost 4 allies 19290 | -4/Factory | Lost 11 parts (3p2n2u4w) 19368 | -4/Factory | Zion Heavy squad teleported in 19658 | -4/Factory | Found Zio. Weapon Casing 19858 | -4/Factory | Discovered new exit (range 10) 19880 | -4/Factory | Identified exit to Upper Caves 19882 | -4/Factory | Entered Upper Caves 20016 | -4/Upper Caves | X0-1V1 mutated your Utility slot to Weapon slot 20037 | -4/Upper Caves | Encountered a Warlord checkpoint 20067 | -4/Upper Caves | X0-1V1 sent you into danger 20069 | -4/Upper Caves | Attracted the attention of an 0b10 base 20069 | -4/Upper Caves | Learned Factory terminal intel 20140 | -4/Upper Caves | Destroyed 12 combat bots 20393 | -4/Upper Caves | System corruption reached 10% 20396 | -4/Upper Caves | X0-1V1 mutated your Weapon slot to Propulsion slot 20407 | -4/Upper Caves | X0-1V1 activates XOMVISION 20516 | -4/Upper Caves | Discovered new exit (range 10) 20611 | -4/Upper Caves | Learned Research garrison access intel 20625 | -4/Upper Caves | Entered another Upper Caves area 20637 | -4/Upper Caves | Discovered new exit (range 12) 20707 | -4/Upper Caves | Learned Research terminal intel 20865 | -4/Upper Caves | Attacked by a delusional Derelict stockpiling parts 20956 | -4/Upper Caves | X0-1V1 sent hostile X-67 Chaingunner (x2) 21136 | -4/Upper Caves | Entered a destroyed Warlord outpost 21157 | -4/Upper Caves | X0-1V1 activates XOMVISION 21168 | -4/Upper Caves | Discovered new exit (range 6) 21194 | -4/Upper Caves | Entered Warlord 21228 | -4/Warlord | System corruption reached 30% 21251 | -4/Warlord | System corruption cleaned by Quarantine Array 21426 | -4/Warlord | Opened Warlord's prototype stash 21432 | -4/Warlord | Found Prototype Reactor 21432 | -4/Warlord | Identified Vortex Chain Reactor 21440 | -4/Warlord | Found Prototype Device 21440 | -4/Warlord | Identified Exp. Cloaking Device 21455 | -4/Warlord | Found Prototype Device 21455 | -4/Warlord | Identified Thermal Barrier 21458 | -4/Warlord | Found Prototype Processor 21458 | -4/Warlord | Identified Spectral Analyzer 21510 | -4/Warlord | Build established: Scavenger-Mutant 21614 | -4/Warlord | Received a Watcher feed algorithm from an ecstatic Tinkerer 21725 | -4/Warlord | Visited the Vortex Lab 21732 | -4/Warlord | Found Prototype Energy Gun 21734 | -4/Warlord | Found Prototype Energy Gun 21735 | -4/Warlord | Identified Vortex Shotgun (x2) 21738 | -4/Warlord | Warlord's base attacked by MAIN.C 21989 | -4/Warlord | X0-1V1 sent hostile Butcher (x1) 22021 | -4/Warlord | Build established: Scavenger-Tank 22056 | -4/Warlord | Found Prototype Ballistic Cannon 22056 | -4/Warlord | Identified Hvy. Autocannon 22057 | -4/Warlord | Destroyed 8 combat bots 22088 | -4/Warlord | Warlord forces counterattacked 22130 | -4/Warlord | Destroyed 10 combat bots 22138 | -4/Warlord | Lost 3 allies 22139 | -4/Warlord | Spotted Executioner 22182 | -4/Warlord | Found Prototype Processor 22183 | -4/Warlord | Identified Exp. Core Analyzer 22184 | -4/Warlord | Spotted Striker 22186 | -4/Warlord | Destroyed Striker 22191 | -4/Warlord | Spotted Striker 22243 | -4/Warlord | Lost 13 allies 22248 | -4/Warlord | Spotted B-90 Cyclops 22259 | -4/Warlord | Spotted Striker 22260 | -4/Warlord | Spotted Striker 22265 | -4/Warlord | Spotted Striker 22275 | -4/Warlord | Destroyed Striker 22278 | -4/Warlord | X0-1V1 turns hostiles against one another 22289 | -4/Warlord | Allies destroyed B-90 Cyclops 22314 | -4/Warlord | Lost 11 allies 22324 | -4/Warlord | X0-1V1 vaporized surrounding terrain (radius 17) 22352 | -4/Warlord | Spotted Executioner 22369 | -4/Warlord | Destroyed Executioner 22395 | -4/Warlord | Lost 3 allies 22404 | -4/Warlord | Destroyed 7 combat bots 22406 | -4/Warlord | Discovered new exit (range 22) 22413 | -4/Warlord | Warlord base infiltrated, sounded retreat 22443 | -4/Warlord | Spotted B-90 Cyclops 22453 | -4/Warlord | Spotted Striker 22456 | -4/Warlord | Destroyed B-90 Cyclops 22464 | -4/Warlord | Spotted Striker 22511 | -4/Warlord | Entered Proximity Caves 22792 | -3/Proximity Caves | Spotted B-86 Titan 22799 | -3/Proximity Caves | Identified exit to Research 22799 | -3/Proximity Caves | X0-1V1 revealed exit location to -3/Research 22963 | -3/Proximity Caves | Attracted the attention of an 0b10 outpost 22982 | -3/Proximity Caves | Entered Research 22982 | -3/Research | Evolved 2 slots: Utility x2 22983 | -3/Research | Loaded intel: 23 terminal locations 22984 | -3/Research | Loaded intel: 3 garrison access locations 23071 | -3/Research | X0-1V1 mutated your Propulsion slot to Weapon slot 23149 | -3/Research | Identified exit to DSF 23240 | -3/Research | X0-1V1 added 0b10 threat records associated with you (minor) 23268 | -3/Research | Retrieved Zion intel report: Branch Access 23268 | -3/Research | Identified exit to Armory 23268 | -3/Research | Identified exit to Testing 23269 | -3/Research | Zion Thermal Resupply teleported in 23399 | -3/Research | X0-1V1 sent hostile P-70 Sage (x2) 23504 | -3/Research | Zion Offense Resupply teleported in 23591 | -3/Research | X0-1V1 sent you to a vault 23607 | -3/Research | Discovered new exit (range 7) 23668 | -3/Research | Lost 5 allies 23748 | -3/Research | Discovered new exit (range 17) 23787 | -3/Research | Identified exit to Research 23787 | -3/Research | X0-1V1 revealed exit location to -2/Research 23824 | -3/Research | Zion Heavy squad teleported in 23920 | -3/Research | Entered Testing 23928 | -3/Testing | Build established: Hauler-Tank 23973 | -3/Testing | Found Prototype Energy Gun 23973 | -3/Testing | Identified Warp Gun 24227 | -3/Testing | Found Prototype Ballistic Gun 24227 | -3/Testing | Identified Hyp. Multirail 24263 | -3/Testing | X0-1V1 sent you to a vault 24304 | -3/Testing | Retrieved Zion intel report: Prototype Stockpiles 24348 | -3/Testing | Retrieved Zion intel report: Guard Positions 24361 | -3/Testing | Retrieved Zion intel report: Prototype Schematics 24422 | -3/Testing | Build established: Hauler-Assassin 24465 | -3/Testing | Found Thermal Barrier 24468 | -3/Testing | Found Exp. Core Analyzer 24481 | -3/Testing | Found Prototype Protection 24692 | -3/Testing | Found Prototype Energy Cannon 24692 | -3/Testing | Identified Null Cannon 24752 | -3/Testing | Found Prototype Energy Gun 24752 | -3/Testing | Identified Tachyon Dispersion Ray 24835 | -3/Testing | System corruption reached 10% 25232 | -3/Testing | Discovered exit to Research (range 11) 25274 | -3/Testing | Spotted PP-4NMZCXVQBM 25303 | -3/Testing | Destroyed PP-4NMZCXVQBM 25328 | -3/Testing | Found Prototype Device 25328 | -3/Testing | Identified Exp. Weapon Cycler 25330 | -3/Testing | Terminal network hard line cut 25339 | -3/Testing | Found Prototype Energy Gun 25339 | -3/Testing | Identified Enh. Gamma Rifle 25375 | -3/Testing | Entered Research 25375 | -2/Research | Evolved 2 slots: Propulsion x1, Utility x1 25425 | -2/Research | Forcibly received Sfc. Transmogifier from X0-1V1 25471 | -2/Research | X0-1V1 enhanced Transport squad support 25515 | -2/Research | Discovered new exit (range 22) 25567 | -2/Research | Identified exit to Access 25725 | -2/Research | Zion Experimental squad teleported in 25731 | -2/Research | Build established: Hauler-Tank 25732 | -2/Research | Discovered exit to Access (range 7) 25835 | -2/Research | Identified exit to Quarantine 25835 | -2/Research | X0-1V1 revealed exit location to -2/Quarantine 25841 | -2/Research | Found Prototype Protection 25841 | -2/Research | Identified Zio. Shade Armor 25875 | -2/Research | First assault squad dispatched 25896 | -2/Research | X0-1V1 downgraded hostiles (x2) 25932 | -2/Research | Found Zio. Shade Armor 25935 | -2/Research | Found Zio. Shade Armor 25936 | -2/Research | Destroyed 14 combat bots 25945 | -2/Research | X0-1V1 sent allied B-74 Champion (x2) 25954 | -2/Research | Found Zio. Shade Armor 26292 | -2/Research | Discovered exit to Access (range 23) 26569 | -2/Research | Entered Quarantine 26669 | -2/Quarantine | Cryocooling Duct disabled 26684 | -2/Quarantine | Ambient heat levels rising (+20) 26684 | -2/Quarantine | Non-combat units ordered to evacuate 26739 | -2/Quarantine | Retrieved Zion intel report: Prototype Stockpiles 27082 | -2/Quarantine | Retrieved Zion intel report: Main Access 27082 | -2/Quarantine | X0-1V1 sent hostile Thug (x3) 27158 | -2/Quarantine | Retrieved Zion intel report: Component Schematics 27159 | -2/Quarantine | X0-1V1 sent you into danger 27243 | -2/Quarantine | X0-1V1 sent hostile B-74 Champion (x2) 27317 | -2/Quarantine | Cryocooling Duct disabled 27332 | -2/Quarantine | Ambient heat levels rising (+20) 27332 | -2/Quarantine | Combat units ordered to evacuate 27383 | -2/Quarantine | Retrieved Zion intel report: Active Terminals 27432 | -2/Quarantine | Quarantine Guard activated 27468 | -2/Quarantine | X0-1V1 vaporized surrounding terrain (radius 23) 27489 | -2/Quarantine | Found Alien Slashing Weapon 27489 | -2/Quarantine | Identified Sigix Broadsword 27543 | -2/Quarantine | Spotted Quarantine Guard 27555 | -2/Quarantine | Spotted Quarantine Guard 27558 | -2/Quarantine | Spotted Quarantine Guard 27559 | -2/Quarantine | Destroyed Quarantine Guard 27612 | -2/Quarantine | Destroyed Quarantine Guard 27616 | -2/Quarantine | Destroyed Quarantine Guard 27689 | -2/Quarantine | Retrieved Zion intel report: Guard Positions 27703 | -2/Quarantine | Spotted Quarantine Guard 27732 | -2/Quarantine | Destroyed Quarantine Guard 27749 | -2/Quarantine | Spotted Alpha 7 27761 | -2/Quarantine | Spotted Quarantine Guard 27765 | -2/Quarantine | Destroyed Quarantine Guard 27777 | -2/Quarantine | System corruption reached 10% 27809 | -2/Quarantine | Destroyed Alpha 7 27836 | -2/Quarantine | Spotted Quarantine Guard 27850 | -2/Quarantine | Destroyed Quarantine Guard 27870 | -2/Quarantine | Found Prototype Processor 27870 | -2/Quarantine | Identified Exp. Targeting Computer 27927 | -2/Quarantine | Spotted Quarantine Guard 27948 | -2/Quarantine | Destroyed Quarantine Guard 27973 | -2/Quarantine | Retrieved Zion intel report: Active Garrisons 28003 | -2/Quarantine | Retrieved Zion intel report: Prototype Schematics 28045 | -2/Quarantine | Spotted Quarantine Guard 28119 | -2/Quarantine | Terminal network hard line cut 28127 | -2/Quarantine | Spotted Quarantine Guard 28161 | -2/Quarantine | Found Alien Artifact 28161 | -2/Quarantine | Identified Core Reset Matrix 28161 | -2/Quarantine | Used Core Reset Matrix 28165 | -2/Quarantine | Detected hypermatrix surge 28165 | -2/Quarantine | Sensed 4 artifacts in vicinity 28171 | -2/Quarantine | Discovered exit to Access (range 24) 28171 | -2/Quarantine | Spotted Quarantine Guard 28192 | -2/Quarantine | X0-1V1 sent hostile G-73 Enforcer (x5) 28197 | -2/Quarantine | Weapon slot count temporarily expanded by X0-1V1 (+1) 28295 | -2/Quarantine | Found Subatomic Replicator 28538 | -2/Quarantine | Build established: Hauler-Assassin 28916 | -2/Quarantine | Identified Centrium Heavy Armor Plating 28928 | -2/Quarantine | Spotted Fortress 28950 | -2/Quarantine | X0-1V1 sent allied S-43 Plague (x3) 28999 | -2/Quarantine | Lost 3 allies 29011 | -2/Quarantine | Discovered new exit (range 5) 29011 | -2/Quarantine | Discovered new exit (range 6) 29015 | -2/Quarantine | Identified exit to Section 7 29016 | -2/Quarantine | Entered Section 7 29017 | -2/Section 7 | Detected hypermatrix surge 29017 | -2/Section 7 | Sensed 23 artifacts in vicinity 29135 | -2/Section 7 | Found Microwarp Drive 29149 | -2/Section 7 | Retrieved Zion intel report: Trap Installations 29150 | -2/Section 7 | Retrieved Zion intel report: Guard Positions 29170 | -2/Section 7 | Spotted S7 Guard 29229 | -2/Section 7 | Used Subatomic Replicator to create Supercharged Integrated Reactor 29233 | -2/Section 7 | Installed Supercharged Integrated Reactor, increased core energy generation (+15) 29258 | -2/Section 7 | Retrieved Zion intel report: Prototype Stockpiles 29453 | -2/Section 7 | Retrieved Zion intel report: Component Schematics 29461 | -2/Section 7 | Retrieved Zion intel report: Active Garrisons 29472 | -2/Section 7 | X0-1V1 activates XOMVISION 29479 | -2/Section 7 | X0-1V1 sent you to a vault 29488 | -2/Section 7 | Discovered exit to Access (range 22) 29491 | -2/Section 7 | Spotted S7 Guard 29503 | -2/Section 7 | Found Integrated Thermoelectric Network 29503 | -2/Section 7 | Installed Integrated Thermoelectric Network, gained heat-energy exchange potential 29528 | -2/Section 7 | Found Corrupted Prototype Protection 29571 | -2/Section 7 | Spotted Executioner 29571 | -2/Section 7 | Spotted Executioner 29575 | -2/Section 7 | Destroyed Executioner 29577 | -2/Section 7 | Destroyed Executioner 29634 | -2/Section 7 | Found Transdimensional Reconstructor 29641 | -2/Section 7 | Found Transdimensional Reconstructor 29701 | -2/Section 7 | Spotted Striker 29701 | -2/Section 7 | Spotted Striker 29778 | -2/Section 7 | Found Sigix Sheargun 29792 | -2/Section 7 | Found Sigix Sheargun 29794 | -2/Section 7 | Found Sigix Sheargun 29853 | -2/Section 7 | Build established: Alien-Tank 29923 | -2/Section 7 | Spotted B-99 Colossus 29983 | -2/Section 7 | Found Integrity Redistributor 29986 | -2/Section 7 | Found Integrity Redistributor 29989 | -2/Section 7 | Found Integrity Redistributor 30033 | -2/Section 7 | Found LRC Insulator 30033 | -2/Section 7 | Installed LRC Insulator, 1 resistance modified: EM +25% 30035 | -2/Section 7 | Found LRC Energy Well 30035 | -2/Section 7 | Installed LRC Energy Well, increased energy storage capacity (+250) 30077 | -2/Section 7 | X0-1V1 activates XOMVISION 30109 | -2/Section 7 | Found Integrated Reactor 30109 | -2/Section 7 | Installed Integrated Reactor, increased core energy generation (+10) 30292 | -2/Section 7 | Spotted Alpha 7 30309 | -2/Section 7 | Spotted Alpha 7 30343 | -2/Section 7 | Destroyed Alpha 7 30348 | -2/Section 7 | Scanned by Researcher 30349 | -2/Section 7 | Intercept squad dispatched 30362 | -2/Section 7 | Spotted Tracker 30363 | -2/Section 7 | Destroyed Alpha 7 30364 | -2/Section 7 | Spotted Tracker 30374 | -2/Section 7 | Lost 3 allies 30375 | -2/Section 7 | Destroyed Tracker 30384 | -2/Section 7 | Spotted Combat Programmer 30386 | -2/Section 7 | Destroyed Tracker 30390 | -2/Section 7 | Spotted Combat Programmer 30397 | -2/Section 7 | Destroyed Combat Programmer 30410 | -2/Section 7 | Destroyed Combat Programmer 30421 | -2/Section 7 | Found Prototype Ballistic Gun 30421 | -2/Section 7 | Identified Multirail 30429 | -2/Section 7 | Found Multirail 30441 | -2/Section 7 | Spotted Executioner 30441 | -2/Section 7 | Spotted Executioner 30457 | -2/Section 7 | Destroyed Executioner 30463 | -2/Section 7 | Destroyed Executioner 30469 | -2/Section 7 | Found Prototype Processor 30469 | -2/Section 7 | Identified Exp. Targeting Computer 30474 | -2/Section 7 | Found Exp. Targeting Computer 30547 | -2/Section 7 | Terminal network hard line cut 30613 | -2/Section 7 | Destroyed 9 combat bots 30713 | -2/Section 7 | Found Integrated Reactor 30713 | -2/Section 7 | Installed Integrated Reactor, increased core energy generation (+10) 30736 | -2/Section 7 | Build established: Alien-Gunner 30762 | -2/Section 7 | Found Integrated Mediator 30762 | -2/Section 7 | Installed Integrated Mediator, increased core attachment efficiency 30837 | -2/Section 7 | X0-1V1 whisked you away to safety 30850 | -2/Section 7 | Used Integrity Redistributor, redistributed integrity from core (-235) 30914 | -2/Section 7 | X0-1V1 activates XOMVISION 30974 | -2/Section 7 | Found Integrity Redistributor 30987 | -2/Section 7 | X0-1V1 added 0b10 threat records associated with you (minor) 31031 | -2/Section 7 | Entered Access 31031 | -1/Access | Evolved 1 slot: Weapon x1 31174 | -1/Access | Retrieved Zion intel report: Active Terminals 31345 | -1/Access | Retrieved Zion intel report: Trap Installations 31346 | -1/Access | Zion Hacking Resupply teleported in 31410 | -1/Access | Spotted B-99 Colossus 31531 | -1/Access | First assault squad dispatched 31747 | -1/Access | Discovered new exit (range 7) 31754 | -1/Access | Entered Command 31843 | -1/Command | Spotted B-99 Colossus 32004 | -1/Command | First assault squad dispatched 32030 | -1/Command | Spotted M Guard 32032 | -1/Command | Spotted M Guard 32034 | -1/Command | Spotted Combat Programmer 32034 | -1/Command | Spotted Combat Programmer 32048 | -1/Command | Destroyed Combat Programmer 32053 | -1/Command | Destroyed Combat Programmer 32092 | -1/Command | Destroyed M Guard 32106 | -1/Command | Destroyed M Guard 32106 | -1/Command | All MAIN.C guards destroyed 32108 | -1/Command | Found YOLO Cannon 32131 | -1/Command | Found Prototype Reactor 32131 | -1/Command | Identified Zero-point Reactor 32146 | -1/Command | Found Zero-point Reactor 32192 | -1/Command | Met MAIN.C 32195 | -1/Command | 0b10 Conduit disabled 32199 | -1/Command | X0-1V1 sent allied H-81 Overseer (x3) 32208 | -1/Command | Destroyed MAIN.C Shell 32210 | -1/Command | MAIN.C activated Command garrisons 32224 | -1/Command | Destroyed MAIN.C 32249 | -1/Command | Discovered new exit (range 29) 32249 | -1/Command | Discovered new exit (range 106) 32249 | -1/Command | Extracted map data and part IDs from MAIN.C's data core 32350 | -1/Command | X0-1V1 sent you to a vault 32353 | -1/Command | Found Vortex Chain Reactor 32357 | -1/Command | Found Zero-point Reactor 32687 | -1/Command | Identified exit to Access_0 32687 | -1/Command | X0-1V1 revealed exit location to -1/Access_0 32807 | -1/Command | Spotted Executioner 32811 | -1/Command | Destroyed Executioner 32835 | -1/Command | Found Exp. Targeting Computer 32917 | -1/Command | X0-1V1 activates XOMVISION 33114 | -1/Command | Found Imp. Particle Accelerator 33152 | -1/Command | X0-1V1 sent hostile B-74 Champion (x3) 33360 | -1/Command | X0-1V1 activates XOMVISION 33472 | -1/Command | Found Exp. Weapon Cycler 33477 | -1/Command | Found Null Cannon 33731 | -1/Command | X0-1V1 sent hostile B-74 Champion (x1) 34152 | -1/Command | X0-1V1 activates XOMVISION 34177 | -1/Command | Build established: Alien-Tank 34194 | -1/Command | Found Exp. EM Shield 34601 | -1/Command | X0-1V1 activates XOMVISION 34671 | -1/Command | X0-1V1 tapped a No Entrance sign 34767 | -1/Command | Warped through subspace to slip node 34774 | -1/Command | Entered Access_0 34775 | -1/Access_0 | Sensed 4 artifacts in vicinity 34775 | -1/Access_0 | Met Architect 34778 | -1/Access_0 | Destroyed A8 34783 | -1/Access_0 | Architect warped through subspace 34830 | -1/Access_0 | Architect warped through subspace 34878 | -1/Access_0 | Architect warped through subspace 34926 | -1/Access_0 | Architect warped through subspace 34971 | -1/Access_0 | Architect warped through subspace 35018 | -1/Access_0 | Architect warped through subspace 35058 | -1/Access_0 | Architect warped through subspace 35071 | -1/Access_0 | Subspace Access Node disabled 35085 | -1/Access_0 | Architect warped through subspace 35108 | -1/Access_0 | Architect warped through subspace 35123 | -1/Access_0 | X0-1V1 sent hostile Thug (x2) 35130 | -1/Access_0 | Architect warped through subspace 35139 | -1/Access_0 | Found Core Regenerator 35146 | -1/Access_0 | X0-1V1 vaporized surrounding terrain (radius 15) 35148 | -1/Access_0 | A6 warped into view 35148 | -1/Access_0 | Architect warped through subspace 35156 | -1/Access_0 | Destroyed A6 35167 | -1/Access_0 | Architect warped through subspace 35198 | -1/Access_0 | Architect warped through subspace 35238 | -1/Access_0 | Architect warped through subspace 35249 | -1/Access_0 | X0-1V1 activates XOMVISION 35273 | -1/Access_0 | Architect warped through subspace 35278 | -1/Access_0 | Found Sigix Broadsword 35309 | -1/Access_0 | Architect warped through subspace 35346 | -1/Access_0 | Architect warped through subspace 35386 | -1/Access_0 | Architect warped through subspace 35399 | -1/Access_0 | Subspace Access Node disabled 35404 | -1/Access_0 | A5 warped into view 35406 | -1/Access_0 | Destroyed A5 35423 | -1/Access_0 | Architect warped through subspace 35453 | -1/Access_0 | Architect warped through subspace 35483 | -1/Access_0 | Architect warped through subspace 35508 | -1/Access_0 | Architect warped through subspace 35543 | -1/Access_0 | Architect warped through subspace 35561 | -1/Access_0 | Architect warped through subspace 35576 | -1/Access_0 | Architect warped through subspace 35593 | -1/Access_0 | Build established: Alien-Mutant 35594 | -1/Access_0 | Architect warped through subspace 35607 | -1/Access_0 | Architect warped through subspace 35622 | -1/Access_0 | Architect warped through subspace 35628 | -1/Access_0 | X0-1V1 whisked you away to safety 35631 | -1/Access_0 | Crushed by falling debris 35648 | -1/Access_0 | Architect warped through subspace 35649 | -1/Access_0 | Core integrity restored by X0-1V1 (+360) 35658 | -1/Access_0 | Subspace Access Node disabled 35661 | -1/Access_0 | Architect warped through subspace 35679 | -1/Access_0 | Subspace Access Node disabled 35695 | -1/Access_0 | Used Core Regenerator, restored core integrity (+450) 35701 | -1/Access_0 | Used Integrity Redistributor, redistributed integrity from core (-257) 35738 | -1/Access_0 | Core integrity restored by X0-1V1 (+432) 35805 | -1/Access_0 | A4 warped into view 35809 | -1/Access_0 | Destroyed A4 35822 | -1/Access_0 | Singularity Gate disabled 35825 | -1/Access_0 | X0-1V1 sent allied Elite (x4) 35848 | -1/Access_0 | Destroyed Architect 35861 | -1/Access_0 | Extracted unknown sensor trigger ID from Architect's data core 35865 | -1/Access_0 | Found Hpw. Transdimensional Reconstructor 35917 | -1/Access_0 | System corruption reached 10% 35973 | -1/Access_0 | X0-1V1 sent allied G-73 Enforcer (x4) 35983 | -1/Access_0 | Destroyed A2 36013 | -1/Access_0 | Found Sigix Corpse 36039 | -1/Access_0 | Extracted Singularity Gate Test 138-C access codes from A2's data core 36271 | -1/Access_0 | Found Integrated Reactor 36271 | -1/Access_0 | Installed Integrated Reactor, increased core energy generation (+10) 36350 | -1/Access_0 | Build established: Alien-Executioner 36393 | -1/Access_0 | X0-1V1 activates XOMVISION 36939 | -1/Access_0 | X0-1V1 activates XOMVISION 36977 | -1/Access_0 | Core integrity restored by X0-1V1 (+486) 37102 | -1/Access_0 | A3 warped into view 37116 | -1/Access_0 | Destroyed A3 37159 | -1/Access_0 | Found Prototype Ballistic Gun 37160 | -1/Access_0 | Identified A3's Sniper Rifle 37205 | -1/Access_0 | Warped through subspace to slip node 37205 | -1/Access_0 | Discovered new exit (range 8) 37207 | -1/Access_0 | Used Integrity Redistributor, redistributed integrity from core (-185) 37225 | -1/Access_0 | Used Integrity Redistributor, redistributed integrity from core (-0) 37226 | -1/Access_0 | Warped through subspace to slip node 37237 | *** | Heading to fleet! Last Messages --------------- 37116_ Lgt. Particle Reactor melted. 37116_ Quantum Router melted. 37116_ Exp. Energy Well melted. 37116_ Deep Network Scanner melted. 37116_ Adv. Remote Force Field melted. 37116_ A3: "How even..." 37126_ Ended siege mode. 37128_ System corrupted: FCS attempts to trigger Gatling Beam. 37128_ System corrupted: Gatling Beam misfires. 37153_ System corrupted: Heat flow error (+109). 37153_ Dropped Adv. Phase Shifter. 37159_ Acquired Prototype Ballistic Gun. 37160_ Identified A3's Sniper Rifle. 37163_ X0-1V1 lends a hand with your twisted circuits (-16 system corruption). 37205_ Warped through subspace, drawn to slip node. 37205_ EXIT=FOUND 37207_ Integrity redistributed from core (-185). 37225_ Integrity redistributed from core (-0). 37226_ Warped through subspace, drawn to slip node. Map ----- +----------------------------------------------------+ | | | | | | | | | | | | | | | | | | | | | | | | | | | | | | | | | ?????????????????????????????????????????????????? | | ?????????????????????????????????????????????????? | | ?????????????????????????????????????????????????? | | ?????????????????????????????????????????????????? | | ?????????????????????????????????????????????????? | | ?????????????????????????????????????????????????? | | ????????????????????????###??????????????????????? | | ???????????????????????## ##?????????????????????? | | ???????????????????????# #?????????????????????? | | ???????????????????????# @ #?????????????????????? | | ??????????????????????## #?????????????????????? | | ??????????????????????# #?????????????????????? | | ??????????????????????# ##?????????????????????? | | ??????????????????????## #?????????????????????? | | ??????????????????????# #?????????????????????? | | ??????????????????????# ##?????????????????????? | | ??????????????????????# < #?????????????????????? | | ??????????????????????# ##?????????????????????? | | ??????????????????????## #??????????????????????? | | ???????????????????????####??????????????????????? | | ?????????????????????????????????????????????????? | | ?????????????????????????????????????????????????? | | ?????????????????????????????????????????????????? | | ?????????????????????????????????????????????????? | | ?????????????????????????????????????????????????? | | ?????????????????????????????????????????????????? | | ?????????????????????????????????????????????????? | | ?????????????????????????????????????????????????? | | ?????????????????????????????????????????????????? | | ?????????????????????????????????????????????????? | | ?????????????????????????????????????????????????? | | ?????????????????????????????????????????????????? | | ?????????????????????????????????????????????????? | | ?????????????????????????????????????????????????? | +----------------------------------------------------+ Best States ------------- Heat Dissipation 142 Coolant Potential 120 Energy Generation 143 Energy Capacity 2280 Matter Stores 900 Matter Capacity 900 Sight Range 30 Robot Scan Range 16 Terrain Scan Range 20 Terrain Scan Density 10 ECM Strength 3 Jamming Range 16 Cloak Strength 4 Base Temperature (-) 150 Armor Coverage 2000 Resistance: KI 30 Resistance: TH 50 Resistance: EX 30 Resistance: EM 55 Resistance: I 30 Resistance: S 30 Resistance: P 30 Utility Shielding 66 Weapon Shielding 100 Weapon Cycling 30 Phase Shifting 15 Evasion (%) 70 Targeting Accuracy 24 Core Analysis 8 Recoil Reduction 7 Energy Filtering 75 Salvage Targeting 4 Offensive Hacking 14 Item Schematics ----------------- Hvy. Siege Treads | -2/Section 7 | Z-intel Imp. Core Shielding | -2/Section 7 | Z-intel Imp. Thermal Generator | -2/Section 7 | Z-intel Enh. Hardcell Cannon | -2/Section 7 | Z-intel Adv. Medium Treads | -2/Section 7 | Z-intel Machine Analyzer | -2/Section 7 | Z-intel Adv. Shield Generator | -2/Section 7 | Z-intel Adv. Datajack | -2/Section 7 | Z-intel Imp. Targeting Computer | -2/Section 7 | Z-intel Focal Shield | -2/Section 7 | Z-intel Imp. Gyrokinetic Inverter | -2/Section 7 | Z-intel Gyrokinetic Inverter | -2/Section 7 | Z-intel Imp. Arc Projector | -2/Section 7 | Z-intel Com. Matter Pod | -2/Section 7 | Z-intel Exp. Focal Shield | -2/Section 7 | Archive Cld. Field Propulsion Drive | -2/Section 7 | Archive Adv. Variable Charge Gun | -2/Section 7 | Archive Adv. Quantum Shading Machine | -2/Section 7 | Archive Adv. Micro-nuke Launcher | -2/Section 7 | Archive Enh. Multireflex Exoskeleton | -2/Section 7 | Archive Gravity Flail | -2/Section 7 | Archive Adv. Plasma Rifle | -2/Section 7 | Archive Exp. Q-thruster | -2/Section 7 | Archive Cld. Proton Cannon | -2/Section 7 | Archive Robot Schematics ------------------ R-06 Scavenger | -2/Section 7 | Archive G-67 Veteran | -2/Section 7 | Archive H-77 Assassin | -2/Section 7 | Archive Fabricated ------------ Nothing Repaired ---------- Lgt. Treads | 18% | -8/Storage Studied --------- None Alien Tech Used ----------------- Core Expander Sigix Broadsword Core Reset Matrix Subatomic Replicator Supercharged Integrated Reactor Integrated Thermoelectric Network Sigix Sheargun LRC Insulator LRC Energy Well Integrated Reactor Microwarp Drive Integrated Mediator Integrity Redistributor Transdimensional Reconstructor Core Regenerator High-powered Transdimensional Reconstructor Achievements -------------- None Challenges ------------ None Game ------ Seed DeuteriumNeutronTracker Manual? 0 Play Time 06:42:51 Cumulative 1307.8 hours Start 2026.06.28 @ 18:39:29 End 2026.06.29 @ 01:28:11 Sessions 1 Manual Loads 0 Difficulty Rogue Special Mode None Game No. 410 Rogue 408 Adventurer 2 Explorer 0 Win Type 2 Total 111 Types 33/25/26/2/1/1/17/2/1/3 Lore% 98 Gallery% 92 Achievement% 91 Wizard Run 0 Options --------- Layout 0 ASCII 0 Keyboard 1 Movement Numpad Keybinds 0 Fullscreen 1 Font 24/Smallcaps Map View 76x50 Zoom Use 0% Tactical HUD 1 Map Filters NONE Filters NONE Steam 1 RUN: fd347ec1-ca57-4ba8-92b4-657855547084